Cogmind - Beta 16.1 @@@ ROGUE MODE // 2026.04.14 @ 04:22:51 Player: puppuppit Result: Destroyed by Executioner with Helical Railgun Performance ------------- Evolutions (7) 3500 Regions Visited (27) 5400 Robots Destroyed (814) 4070 Value Destroyed (33380) 33380 Prototype IDs (106) 2120 Alien Tech Used (4) 800 Bonus (27848) 27848 TOTAL SCORE: 77118 Bonus ------- Triggered High Security 1500 High Alert Combat Kills 14042 Follower Combat Kills 4571 Hunted by Unchained 500 Registered with UFD 300 Met Optimus in HQ 500 Met Imprinter 300 Met Warlord at Base 500 MAIN.C Attacked Warlord 500 Warlord Defense Kills 6580 Used Core Reset Matrix 3000 Met Optimus at Protoforge 1000 Friendly Fire -5445 Cogmind --------- Core Integrity 0/1300 Matter 260/300 Energy 1650/1650 System Corruption 6% Temperature Cool (0) Movement Hovering (40) Location -3/Protoforge Parts ------- > --- POWER (2) -------- Improved Quantum Reactor Hybrid Graviton Reactor > --- PROPULSION (6) --- Improved Antigrav System Improved Antigrav System Combat Linear Gravjet Concept Gyrokinetic System Concept Gyrokinetic System Concept Gyrokinetic System (fused) > --- UTILITY (9) ------ 0bPrime Scrap Suit Large Storage Unit Experimental Optical Array Experimental Core Analyzer Experimental Armor Integrity Analyzer Concept Recoil Nullifier Makeshift Medium Armor Plating Graphene Brace > --- WEAPON (4) ------- Helical Railgun Helical Railgun Helical Railgun Helical Railgun > --- INVENTORY (15) --- Improved Quantum Reactor Concept Gyrokinetic System Concept XC Strikerail Sigix Terminator (1) UFD Drillbomb Peak State ------------ > --- POWER ------------ Improved Quantum Reactor Hybrid Graviton Reactor > --- PROPULSION ------- Improved Antigrav System Combat Linear Gravjet Concept Gyrokinetic System Concept Gyrokinetic System Concept Gyrokinetic System Concept Gyrokinetic System > --- UTILITY ---------- 0bPrime Scrap Suit Large Storage Unit Experimental Optical Array Experimental Core Analyzer Experimental Armor Integrity Analyzer Concept Recoil Nullifier Concept Core Shell Graphene Brace > --- WEAPON ----------- Helical Railgun Helical Railgun Helical Railgun Helical Railgun > --- INVENTORY -------- Improved Quantum Reactor Experimental Reaction Control System Concept XC Strikerail Sigix Terminator UFD Drillbomb [Rating: 217] Favorites ----------- Power Reinforced Ion Engine Engine Reinforced Ion Engine Power Core Neutrino Core Reactor Cold Fusion Reactor Propulsion Light Treads Treads Light Treads Leg Carbon-fiber Leg Hover Unit Antigrav System Flight Unit Impulse Thruster Array Utility Hacking Suite Device Advanced Heat Sink Storage High-capacity Storage Unit Processor A0-MCA's Component Scanner Hackware Hacking Suite Protection Medium Armor Plating Artifact Phase Redirector Weapon Improved Assault Rifle Energy Gun Storm Laser Energy Cannon Vortex Driver Ballistic Gun Improved Assault Rifle Ballistic Cannon Tri-rail Accelerator Launcher Tiamat Missile Launcher Special Weapon RU-N14's Throwing Claymores v3 Impact Weapon Flail Slashing Weapon Ripper Piercing Weapon Force Lance Special Melee Weapon Advanced Datajack Build | -11 -10 -10 -9 -9 -9 -9 -6 -6 -6 -6 -6 -5 -5 -5 -5 -5 -5 -5 -4 -4 -4 -4 -4 -4 -3 -3 -3 ------- Run | Yrd Mat Min Mat Sto Rec Scr Fac Was Fac Low Zio Pro Fac Was Fac Upp Upp War Pro Fac Was Fac Arm Lab Res Qua Frg Slots Evolved 14 | . . . 2 . . . 6 . . . . . 2 . . . . . . 2 . . . . 2 . . Power 1 | . . . . . . . . . . . . . 1 . . . . . . . . . . . . . . Propulsion 4 | . . . . . . . 3 . . . . . . . . . . . . 1 . . . . . . . Utility 7 | . . . 1 . . . 3 . . . . . . . . . . . . 1 . . . . 2 . . Weapon 2 | . . . 1 . . . . . . . . . 1 . . . . . . . . . . . . . . Parts Attached 500 | 7 12 1 24 18 3 12 32 9 12 3 7 1 49 1 26 3 4 18 1 23 6 9 27 3 47 35 107 Power 63 | 1 2 . 3 2 . . 3 . . . . . 5 . 7 . 1 2 . 4 3 2 3 . 7 3 15 Engine 21 | 1 2 . 3 2 . . . . . . . . 1 . 3 . 1 1 . 2 . 1 . . . 2 2 Core 8 | . . . . . . . 1 . . . . . 2 . 3 . . . . 1 . . . . 1 . . Reactor 34 | . . . . . . . 2 . . . . . 2 . 1 . . 1 . 1 3 1 3 . 6 1 13 Propulsion 122 | 2 . 1 5 10 3 4 9 2 2 1 1 . 12 . 6 . . 5 . 3 2 3 5 1 17 9 19 Treads 27 | 2 . 1 5 10 3 4 1 1 . . . . . . . . . . . . . . . . . . . Leg 3 | . . . . . . . 3 . . . . . . . . . . . . . . . . . . . . Wheel . | . . . . . . . . . . . . . . . . . . . . . . . . . . . . Hover 88 | . . . . . . . 5 . 2 1 1 . 12 . 6 . . 5 . 2 1 3 5 1 17 9 18 Flight 4 | . . . . . . . . 1 . . . . . . . . . . . 1 1 . . . . . 1 Utility 164 | 2 4 . 7 1 . 4 11 3 3 2 5 1 18 1 6 1 1 2 . 7 1 1 8 2 15 17 41 Device 81 | 1 . . 2 . . 1 8 2 3 2 3 1 10 1 3 1 1 2 . 3 1 1 4 1 9 6 15 Storage 8 | 1 1 . . . . . . . . . . . 1 . 1 . . . . 1 . . . . . 1 2 Processor 24 | . . . . . . . 1 . . . 1 . 2 . 1 . . . . 1 . . . 1 3 3 11 Hackware 23 | . . . 4 1 . 1 2 . . . 1 . 2 . 1 . . . . 2 . . 4 . 3 2 . Protection 27 | . 3 . 1 . . 2 . 1 . . . . 3 . . . . . . . . . . . . 4 13 Artifact 1 | . . . . . . . . . . . . . . . . . . . . . . . . . . 1 . Weapon 151 | 2 6 . 9 5 . 4 9 4 7 . 1 . 14 . 7 2 2 9 1 9 . 3 11 . 8 6 32 Energy Gun 12 | . . . . . . . 6 . . . . . 3 . . . . . . 1 . . . . 1 . 1 Energy Cannon 7 | . . . . 1 . . . 1 . . . . 2 . . . . 1 . 1 . . . . . . 1 Ballistic Gun 95 | 2 2 . 6 4 . 3 3 3 6 . . . 5 . 4 2 2 2 . 7 . 3 6 . 5 4 26 Ballistic Cannon 5 | . . . . . . . . . . . 1 . 2 . 1 . . . . . . . . . 1 . . Launcher 17 | . 3 . 2 . . 1 . . . . . . 2 . . . . . . . . . 4 . 1 1 3 Special Weapon 9 | . . . . . . . . . . . . . . . 2 . . 6 . . . . . . . . 1 Impact Weapon 2 | . 1 . . . . . . . . . . . . . . . . . 1 . . . . . . . . Slashing Weapon 2 | . . . 1 . . . . . 1 . . . . . . . . . . . . . . . . . . Piercing Weapon 1 | . . . . . . . . . . . . . . . . . . . . . . . . . . 1 . Special Melee Weapon 1 | . . . . . . . . . . . . . . . . . . . . . . . 1 . . . . Unidentified Prototypes 32 | . . . 1 1 . . 3 . . . . . . . . . . . . . . . 3 . 1 3 20 Corrupted Parts 5 | . . . . . . 1 1 . . . . . . . . . . 2 . . . . . . . . 1 System Corruption 17 | . . . . . . 3 1 . . . . . . . . . . 3 . . . . . . . . 10 Parts Lost 135 | . . . 2 1 1 . 25 . 1 2 . . 7 . 9 . 1 4 3 5 . 4 16 . 18 10 26 Power 19 | . . . . . . . 1 . . . . . 2 . 3 . . 1 1 1 . . 1 . 3 2 4 Propulsion 46 | . . . . . . . 8 . . . . . 3 . 3 . 1 1 . 3 . 1 5 . 8 4 9 Utility 32 | . . . . . 1 . 7 . 1 2 . . 1 . . . . 1 . . . 2 5 . 2 2 8 Weapon 38 | . . . 2 1 . . 9 . . . . . 1 . 3 . . 1 2 1 . 1 5 . 5 2 5 Highest Loss Streak 12 | . . . 1 1 1 . 12 . 1 2 . . 2 . 5 . 1 1 2 4 . 3 5 . 4 5 6 To Critical Strikes 2 | . . . . . . . . . . . . . . . . . . . . . . . . . 1 . 1 Average Backups 14 | 2 14 20 19 19 19 19 12 4 5 5 3 2 7 12 12 12 13 12 13 13 13 13 12 12 13 12 9 Power . | . . 1 . . 1 . 1 1 1 1 1 1 . . . 1 2 . 1 . 1 . 1 1 1 1 . Propulsion 2 | . 2 3 2 3 3 2 1 . . . . . . 1 2 1 . 1 1 . . 2 1 2 2 1 1 Utility 5 | . 3 7 7 7 7 9 5 1 1 2 . . 3 7 5 5 6 6 7 8 8 6 4 2 2 4 3 Weapon 5 | . 7 8 8 8 7 6 4 2 2 2 1 1 2 2 3 3 3 3 3 3 4 3 5 6 6 4 3 Tool/Special . | . . . . . . . . . . . . . . . . . . . . . . . . . . . . Unused Backups 80 | . 7 . 10 1 6 2 8 2 . . 1 . 11 . 2 1 . 1 . 3 . 2 4 . 7 4 8 Power 6 | . 2 . 1 . . . 1 . . . . . . . . . . 1 . . . . 1 . . . . Propulsion 11 | . . . . . 1 . . . . . . . 1 . 1 . . . . . . 2 . . 1 2 3 Utility 43 | . 2 . 4 1 5 2 6 . . . 1 . 5 . 1 1 . . . 3 . . 2 . 5 . 5 Weapon 19 | . 3 . 5 . . . 1 2 . . . . 4 . . . . . . . . . 1 . 1 2 . Tool/Special 1 | . . . . . . . . . . . . . 1 . . . . . . . . . . . . . . Average Slot Usage (%) 93 | . 99 100 99 99 100 97 88 82 87 97 86 86 81 90 89 79 83 89 78 85 94 98 92 91 93 94 92 Engine 5 | . 14 14 11 11 11 10 3 . . . . . . 5 . . 2 7 . . 3 3 . . . 1 . Reactor 2 | . . . . . . . 1 6 6 6 6 6 9 . 1 . . . 5 3 3 5 7 5 8 5 7 Treads 10 | . 27 28 21 22 22 22 14 1 . . . . . . . . . . . . . . . . . . . Hover 13 | . . . . . . . 5 13 21 30 33 33 28 23 23 17 17 23 23 23 29 30 30 31 23 24 26 Device 9 | . 13 14 2 . . 5 12 24 21 25 19 20 21 11 10 11 11 9 15 10 5 8 18 26 19 7 11 Storage 7 | . 14 14 11 11 11 10 3 . . . . . 1 5 5 5 5 5 5 5 5 5 5 5 4 4 4 Processor 6 | . . . . . . . 2 6 6 6 5 6 5 17 17 17 17 17 12 14 15 11 3 2 14 22 17 Hackware 7 | . . . 15 21 13 11 17 6 4 . 2 . . . . . . . . 4 10 10 6 . 2 2 . Protection 2 | . . . 3 . 8 4 1 1 6 6 2 . 1 . . . . . . . . . . . . 3 3 Ballistic Gun 21 | . 26 28 32 32 33 31 11 11 19 19 11 6 3 9 13 18 20 16 1 11 11 14 14 21 12 13 16 Peak Build Rating 217 | 9 14 15 27 27 25 32 70 72 72 75 91 91 109 99 108 91 92 125 123 134 129 137 141 132 149 156 217 Average Rating 73 | 7 10 14 24 25 23 26 51 61 63 71 77 90 99 98 102 81 87 103 98 112 123 127 130 131 140 144 185 On Entrance 78 | . 9 13 15 23 25 24 31 60 72 65 75 91 91 101 99 90 86 89 123 95 105 129 137 125 132 133 148 Avg Prop Armor Cover (%) 9 | . . . . . . 41 12 7 16 . . . 2 . 3 . . 2 11 3 2 . . . 8 2 2 Naked Turns . | . . . . . . . . . . . . . . . . . . . . . . . . . . . . Heaviest Build 96 | 15 54 52 69 66 66 79 80 32 33 38 40 45 67 66 65 57 64 82 61 87 79 94 93 91 93 75 96 Greatest Support 116 | 40 40 43 46 40 40 51 116 34 39 50 55 55 73 63 73 61 61 83 77 90 79 87 93 92 96 82 92 Greatest Overweight (x) 4 | 2 1 1 1 1 1 1 2 . . . . . 1 1 4 1 1 1 4 2 1 1 4 . 4 1 1 Average Overweight (x) . | . . 1 1 1 1 . . . . . . . . . . . . . . . . . . . . . . Largest Inventory Capacity 20 | 8 20 20 20 20 20 20 20 5 5 5 5 5 15 15 15 15 15 15 15 15 15 15 15 15 15 15 15 Average Capacity 15 | 7 16 20 20 20 20 19 12 5 5 5 5 5 8 15 15 15 15 15 15 15 15 15 15 15 15 15 15 Most Carried 20 | 5 20 20 20 20 20 20 20 5 5 5 5 5 15 15 15 15 15 15 15 15 15 15 15 13 15 15 15 Average Carried 15 | 2 14 19 19 19 19 19 12 4 4 5 4 5 7 14 14 14 14 14 14 14 14 14 14 12 14 14 13 Final Capacity 20 | 8 20 20 20 20 20 20 5 5 5 5 5 5 15 15 15 15 15 15 15 15 15 15 15 15 15 15 15 Final Carried 20 | 5 20 20 20 20 20 20 5 5 5 5 5 5 15 15 15 14 15 14 15 15 15 15 14 12 15 15 15 Scrap Suit Usage (%) 1 | . . . . . . . . . . . . . . . . . . . . . . . . . . . 17 Parts Cannibalized 59 | . . . . . . . . . . . . . . . . . . . . . . . . . . . 59 Class Distribution -------------------- 18% | Hacker-Gunner 16% | Scavenger-Gunner 10% | Mutant 9% | Skirmisher 7% | Commander-Tank 7% | Gunner 5% | Commander-Skirmisher 5% | Tank 4% | Scavenger-Tank 3% | Scavenger-Scout 3% | Commander-Gunner Dominant Class ---------------- Mutant | -10/Materials Mutant | -10/Mines Hacker-Gunner | -9/Materials Hacker-Gunner | -9/Storage Commander-Tank | -9/Recycling Commander-Skirmisher | -9/Scraptown Hacker-Skirmisher | -6/Factory Gunner | -6/Waste Gunner | -6/Factory Scavenger-Tank | -6/Lower Caves Gunner | -6/Zion Skirmisher | -5/Proximity Caves Scavenger-Tank | -5/Factory Skirmisher | -5/Waste Skirmisher | -5/Factory Skirmisher | -5/Upper Caves Skirmisher | -5/Upper Caves Commander-Gunner | -5/Warlord Mutant | -4/Proximity Caves Scavenger-Gunner | -4/Factory Scavenger-Gunner | -4/Waste Scavenger-Gunner | -4/Factory Scavenger-Tank | -4/Armory Scavenger-Tank | -4/Lab Scavenger-Gunner | -3/Research Scavenger-Scout | -3/Quarantine Scavenger-Gunner | -3/Protoforge Resources | -11 -10 -10 -9 -9 -9 -9 -6 -6 -6 -6 -6 -5 -5 -5 -5 -5 -5 -5 -4 -4 -4 -4 -4 -4 -3 -3 -3 ----------- Run | Yrd Mat Min Mat Sto Rec Scr Fac Was Fac Low Zio Pro Fac Was Fac Upp Upp War Pro Fac Was Fac Arm Lab Res Qua Frg Matter Collected 30292 | 353 964 . 2017 1856 273 320 1268 180 561 619 163 109 1486 764 1820 417 430 1135 315 1316 215 1156 1689 . 2043 1062 7761 Remotely 792 | . . . . . . . . . . . . . . . . . . . . 218 . . 574 . . . . Salvage Created 37804 | 175 1028 . 3254 4375 730 . 1512 . 584 300 . 174 3651 1168 2457 146 97 1161 75 1570 235 907 1544 . 2110 1054 9497 Parts 1691 | 18 70 . 184 203 30 . 44 . 30 4 . 3 147 . 114 2 15 40 . 61 . 36 68 . 110 50 462 Haulers Intercepted 25 | . 2 . 6 6 . . 1 . . . . . 6 . . . . . . 1 . 1 . . . 1 1 Recyclers Shooed 33 | . 2 . 4 6 1 . 1 . 1 . . . 2 . 4 . . . . 5 . 2 . . 3 2 . Parts Field Recycled 12 | . . . . . . . . . . . . . . . . . . . . . . . . . . 12 . Retrieved Matter 140 | . . . . . . . . . . . . . . . . . . . . . . . . . . 140 . Parts Self-Destructed 45 | . . . . . . . . . . 25 . 9 . . . 1 10 . . . . . . . . . . Prevented 2 | . . . . . . . . . . . . . . . . . . . 2 . . . . . . . . Parts Restored . | . . . . . . . . . . . . . . . . . . . . . . . . . . . . Kills | -11 -10 -10 -9 -9 -9 -9 -6 -6 -6 -6 -6 -5 -5 -5 -5 -5 -5 -5 -4 -4 -4 -4 -4 -4 -3 -3 -3 ------- Run | Yrd Mat Min Mat Sto Rec Scr Fac Was Fac Low Zio Pro Fac Was Fac Upp Upp War Pro Fac Was Fac Arm Lab Res Qua Frg Combat Hostiles Destroyed 568 | . 24 . 42 48 8 . 30 . 8 4 . 3 40 6 32 3 10 52 2 24 . 20 38 . 19 13 142 Melee 5 | . . . . . . . . . . . . . . . . . . . . . . . 1 . . 1 3 Guns 357 | . 12 . 30 37 8 . 23 . 8 4 . 1 34 . 17 . 2 6 . 5 . 5 12 . 16 6 131 Cannons 26 | . . . . . . . . . . . . 1 . . 5 . . 6 2 4 . 5 3 . . . . AOE 174 | . 12 . 12 11 . . 7 . . . . . 3 6 10 3 8 40 . 15 . 10 21 . 3 6 7 Classes Destroyed 31 | 3 6 . 4 1 1 . 2 . . . . . . 1 1 . . 4 1 1 . 2 . . . 1 3 Worker 61 | 2 3 . 7 21 . . 3 . 2 . . . 3 . 12 . . . . 1 . 1 . . 4 . 2 Builder 38 | . 2 . 5 6 1 . . . 2 . . . 9 . 8 . . . . 1 . . . . 1 1 2 Tunneler 13 | 4 1 . 2 . . . . . 1 . . . 3 . . . . . . 1 . . . . 1 . . Hauler 26 | . 2 . 6 6 . . 1 . . . . . 6 . . . . . . 1 . 1 . . . 1 2 Recycler 72 | 1 4 . 15 23 4 . 1 . . . . . 2 . 7 . . . . 5 . 2 . . 5 3 . Mechanic 10 | . . . 1 4 . . . . . . . . . . . . . 1 . . . . . . . . 4 Operator 8 | . 1 . 2 1 . . . . . . . . . . 1 . . . . 1 . . . . 1 1 . Drone 42 | . . . . . . . . . . . . . . . . . . . . 1 . . . . . 1 40 Watcher 28 | . 2 . 3 2 . . . . 1 . . . 3 . 3 . . . . 2 . . 3 . 3 2 4 Swarmer 88 | . 6 . 7 3 . . 8 . . 2 . . . . 5 . 9 2 . 8 . 5 15 . 4 4 10 Saboteur 6 | . . . . . . . . . . . . . . . 1 . . . . . . 1 1 . . . 3 Grunt 190 | . 18 . 24 31 . . 15 . 6 1 . 1 17 . 19 2 . 20 . 7 . 4 11 . . 1 13 Brawler 19 | . . . . 1 . . . . 1 1 . . 1 . . 1 . 4 . . . . . . . . 10 Duelist 12 | . . . 2 . 1 . . . . . . 1 2 . . . . 3 . . . . . . . . 3 Protector 19 | . . . 1 3 . . . . . . . . . . . . . 6 . . . 1 1 . . . 7 Sentry 47 | . . . 9 10 6 . 1 . 1 . . 1 5 . 2 . . . 1 3 . 3 1 . 4 . . Demolisher 4 | . . . . . 1 . . . . . . . . . . . . 3 . . . . . . . . . Specialist 4 | . . . . . . . . . . . . . . . . . . . . . . 1 2 . . . 1 Hunter 35 | . . . . . . . 2 . . . . . 3 . 1 . 1 1 . 4 . 2 4 . 3 . 14 Programmer 57 | . . . . . . . 4 . . . . . 12 . 4 . . 6 . 2 . 1 3 . 8 6 11 Heavy 1 | . . . . . . . . . . . . . . . . . . . . . . 1 . . . . . Behemoth 3 | . . . . . . . . . . . . . . . . . . 1 1 . . 1 . . . . . Compactor 6 | . . . . . . . . . . . . . . 6 . . . . . . . . . . . . . Overlord 1 | . . . . . . . . . . . . . . . . . . . . . . . . . . . 1 Striker 14 | . . . . . . . . . . . . . . . . . . 1 . . . . . . . . 13 Executioner 20 | . . . . . . . . . . . . . . . . . . 4 . . . . . . . . 16 Alpha 7 1 | . . . . . . . . . . . . . . . . . . . . . . . . . . 1 . Elite 3 | . . . . . . . . . . . . . . . . . . . . . . . . . . . 3 Scrapoid 8 | . . . . . . . . . . . . . . . . . . . . . . . . . . . 8 Scraphulk 1 | . . . . . . . . . . . . . . . . . . . . . . . . . . . 1 Tinkerer 1 | . . . . . . . . . . . . . . . . . . . 1 . . . . . . . . Surgeon 2 | . . . . . . . . . . . . . 2 . . . . . . . . . . . . . . Mutant 1 | . . . . . . . . . . . . . . . . . . 1 . . . . . . . . . Commander 1 | . . . . . . . . . . . . . . . . . . 1 . . . . . . . . . Best Kill Streak 18 | 4 7 . 6 9 5 . 7 . 8 2 . 1 12 5 12 3 9 14 1 9 . 6 10 . 7 5 18 Combat Bots Only 18 | . 6 . 5 7 5 . 6 . 6 2 . 1 5 5 10 3 9 14 1 8 . 6 10 . 4 4 18 Max Kills in Single Turn 10 | 1 3 . 3 4 2 . 4 . 2 1 . 1 6 2 6 2 3 10 1 5 . 3 4 . 4 3 4 Gunslinging 1 | . . . 1 1 1 . . . . . . . . . . . . 1 . . . . . . . . 1 Exploded 9 | . 2 . 3 3 . . 3 . . . . . 2 2 2 2 3 9 . 4 . 3 4 . 3 3 2 Melee 1 | . . . . . . . . . . . . . . . . . . . . . . . 1 . . 1 1 Uniques/NPCs Destroyed 1 | . . . . . . . . . . . . . . . . . . 1 . . . . . . . . . Warlord (-5/Warlord) Combat | -11 -10 -10 -9 -9 -9 -9 -6 -6 -6 -6 -6 -5 -5 -5 -5 -5 -5 -5 -4 -4 -4 -4 -4 -4 -3 -3 -3 -------- Run | Yrd Mat Min Mat Sto Rec Scr Fac Was Fac Low Zio Pro Fac Was Fac Upp Upp War Pro Fac Was Fac Arm Lab Res Qua Frg Hostile Shots Fired 2617 | . 76 . 152 102 34 . 337 1 69 25 . 6 233 . 171 4 32 50 34 92 . 84 319 . 251 145 400 Missed 943 | . 30 . 44 27 11 . 106 . 25 11 . 1 80 . 60 . 8 15 12 27 . 33 140 . 100 48 165 Hits 1674 | . 46 . 108 75 23 . 231 1 44 14 . 5 153 . 111 4 24 35 22 65 . 51 179 . 151 97 235 Melee 5 | . . . 3 . . . . . . . . . . . . . . . . . . . 1 . . . 1 Projectile 1669 | . 46 . 105 75 23 . 231 1 44 14 . 5 153 . 111 4 24 35 22 65 . 51 178 . 151 97 234 AOE 14 | . . . . . 2 . 4 . . . . . . . . . . 7 . . . . . . . . 1 Critical Strikes 78 | . 1 . 1 . 2 . 5 . . 1 . 1 10 . 5 1 . 1 3 7 . 4 5 . 11 3 17 Actively Blocked 31 | . . . . . . . . . . 1 . . . . . . . . . . . 4 5 . 7 . 14 Part Disruptions 6 | . . . . . . . . . . . . . 2 . . . . . . . . 1 . . 2 1 . Damage Taken 32498 | . 559 . 1503 998 381 . 4030 36 555 271 . 84 3169 . 2085 80 388 1363 643 1107 . 1150 2319 . 2346 2019 7412 Core 3456 | . 72 . 201 130 53 . 619 24 36 35 . 23 328 . 170 20 41 84 . 150 . 83 190 . 216 270 711 Absorbed by Shields 2057 | . . . . . . . . . . . . . . . . . 51 187 73 163 . 15 913 . 482 . 173 Redirected to Shielding 524 | . . . . . . . . . 63 40 . . . . . . . . . . . . . . . 31 390 Ignored by Resistances 382 | . . . . . . . 139 . . . . . . . 204 . . 9 . . . . . . . 30 . Regen/Repaired (Parts) 4054 | . 134 . 247 302 . 309 56 22 119 157 . 7 344 . 203 . . 464 . . 462 273 . . . 213 742 Core Remaining (%) 47 | 100 . 71 . . . 4 . . . . . 13 . . . . . . 35 . . . . 63 . . . Volleys Fired 1555 | 14 71 . 143 165 22 . 102 12 36 21 1 15 127 9 80 5 19 38 12 50 3 52 76 . 95 40 347 Largest 4 | 2 2 . 3 3 3 . 3 3 3 3 1 3 4 2 4 4 4 4 3 4 3 4 4 . 4 4 4 Hottest 323 | 40 53 . 82 82 69 . 210 99 90 150 90 175 323 92 139 155 142 142 198 235 128 203 162 . 209 135 300 Shots Fired 4237 | 28 131 . 418 495 66 . 280 29 100 50 1 33 207 19 218 11 36 96 33 151 8 151 181 . 258 107 1130 Gun 3867 | 28 113 . 408 490 66 . 271 25 99 44 . 9 200 . 174 6 21 61 11 126 6 116 139 . 238 98 1118 Cannon 190 | . . . . . . . . 4 1 6 1 24 3 1 30 1 5 11 19 18 2 25 14 . 17 4 4 Launcher 156 | . 18 . 10 5 . . 9 . . . . . 4 18 10 4 10 7 . 7 . 10 28 . 3 5 8 Special 24 | . . . . . . . . . . . . . . . 4 . . 17 3 . . . . . . . . Kinetic 3723 | 28 113 . 408 490 66 . 182 25 99 44 . 18 76 1 204 7 26 71 24 129 8 124 153 . 207 102 1118 Thermal 288 | . . . . . . . 89 4 1 6 1 15 118 . 2 . . . . . . . . . 48 . 4 Explosive 170 | . 18 . 10 5 . . 9 . . . . . 4 18 10 4 10 24 3 7 . 10 27 . 1 5 5 Electromagnetic 15 | . . . . . . . . . . . . . 9 . . . . . . . . . 1 . 2 . 3 Entropic 39 | . . . . . . . . . . . . . . . . . . 1 6 15 . 17 . . . . . Robot Hit Streak 37 | 4 11 . 26 22 18 . 14 10 7 5 . 3 8 11 28 6 10 10 18 25 6 14 16 . 11 9 37 Robot Miss Streak 18 | 2 2 . 4 4 2 . 5 4 6 3 . 2 16 1 3 . 5 3 1 3 1 3 3 . 9 3 18 Penetration Max 2 | . . . . . . . . . . . . . 1 . 1 . . 2 . 1 . 2 2 . 2 2 2 Secondary Targets 65 | . 1 . 4 10 3 . 3 . 2 2 . . . . 1 . . 2 . 1 . . 2 . 2 . 32 Max Gunslinging Chain 2 | . 1 . 1 2 1 . 1 . 1 1 . . . . 1 . . 2 . 1 . . 1 . 1 . 1 Shots Hit Robots 2612 | 16 79 . 258 320 44 . 192 17 50 26 . 13 132 15 146 4 7 69 31 101 5 88 119 . 133 80 667 Core Hits 1721 | 7 67 . 122 152 18 . 96 . 28 10 . 3 210 12 106 6 17 152 8 70 2 65 105 . 66 38 361 Critical Kills 60 | . 1 . 1 1 . . . . . . . 1 2 . 3 . . . . . . 1 3 . 14 2 31 Critical Parts Destroyed 92 | . . . . 2 1 . . . . . . . 3 . 1 . . . . 4 . . 5 . 19 6 51 Critical Strikes 189 | . 1 . 2 3 1 . 6 . . . . 2 5 . 5 . . 4 1 14 . 7 8 . 35 10 85 Burn 5 | . . . . . . . 5 . . . . . . . . . . . . . . . . . . . . Meltdown 1 | . . . . . . . . . . . . 1 . . . . . . . . . . . . . . . Destroy 157 | . 1 . 2 3 1 . . . . . . . 5 . 4 . . . . 5 . 1 8 . 34 9 84 Blast 3 | . . . . . . . . . . . . 1 . . 1 . . . . . . . . . 1 . . Sever 5 | . . . . . . . 1 . . . . . . . . . . 4 . . . . . . . . . Impale 2 | . . . . . . . . . . . . . . . . . . . . . . . . . . 1 1 Sunder 16 | . . . . . . . . . . . . . . . . . . . 1 9 . 6 . . . . . Melee Attacks 104 | . 3 . 5 3 . . 21 . 1 . . . . . . . . . 4 3 . . 7 . . 32 25 Impact 10 | . 3 . . . . . . . . . . . . . . . . . 4 3 . . . . . . . Slashing 30 | . . . 5 3 . . 21 . 1 . . . . . . . . . . . . . . . . . . Piercing 57 | . . . . . . . . . . . . . . . . . . . . . . . . . . 32 25 Sneak Attacks 21 | . . . . . . . 1 . . . . . . . . . . . 1 1 . . 7 . . 5 6 Combat Hostiles 1 | . . . . . . . . . . . . . . . . . . . . . . . . . . 1 . Follow-up Attacks . | . . . . . . . . . . . . . . . . . . . . . . . . . . . . Damage Inflicted 114791 | 203 2428 . 5168 6295 685 . 5188 418 1337 684 . 335 9780 3129 7200 480 973 13281 2109 5789 212 5706 6967 . 3388 4355 28681 Guns 65267 | 203 879 . 3983 5054 685 . 3390 418 1269 684 . 138 7366 . 3206 51 85 1157 248 2063 73 1971 2284 . 2731 1988 25341 Cannons 6634 | . . . . . . . . . . . . 197 21 47 1318 . . 550 1212 1237 139 1500 334 . 79 . . Explosions 39512 | . 1549 . 1185 1232 . . 1428 . 68 . . . 2393 3082 2645 429 888 10905 350 2387 . 2235 4349 . 539 1359 2489 Melee 2397 | . . . . . . . 370 . . . . . . . . . . . 132 102 . . . . . 1008 785 Ramming 114 | . . . . 9 . . . . . . . . . . . . . . . . . . . . 39 . 66 Kinetic 60902 | 203 879 . 3983 5054 685 . 2087 418 1269 684 . 209 1062 47 4524 51 85 1707 1067 2214 212 2446 2618 . 2069 1988 25341 Thermal 10130 | . . . . . . . 1760 . . . . 126 6764 . 324 . . . . 78 . . 185 . 741 . 152 Explosive 35906 | . 1549 . 1185 1232 . . 733 . . . . . 836 3082 2352 429 888 10905 350 2309 . 2235 4094 . 386 1359 1982 Electromagnetic 2002 | . . . . . . . 238 . 68 . . . 1118 . . . . . . . . . 70 . 153 . 355 Impact 234 | . . . . . . . . . . . . . . . . . . . 132 102 . . . . . . . Slashing 1206 | . . . . . . . 370 . . . . . . . . . . 669 167 . . . . . . . . Piercing 1793 | . . . . . . . . . . . . . . . . . . . . . . . . . . 1008 785 Entropic 2504 | . . . . . . . . . . . . . . . . . . . 393 1086 . 1025 . . . . . Highest Corruption 31 | . . . . . . 3 10 31 31 31 31 . 7 23 23 20 16 16 3 11 11 11 12 12 4 9 26 Average Corruption 12 | . . . . . . 3 7 22 31 31 31 . 2 15 20 16 16 2 3 10 11 11 11 12 3 6 17 Corruption Purged 14 | . . . . . . . . . . . . . 1 . 5 4 . . . . . . . . . 4 . Corruption Blocked . | . . . . . . . . . . . . . . . . . . . . . . . . . . . . Effects 612 | . . . . . . . 30 17 38 34 2 . 25 5 57 27 30 22 10 6 16 43 33 1 11 32 173 Message Errors 113 | . . . . . . . 10 5 10 6 . . 4 1 9 2 5 4 1 1 4 8 5 1 2 8 27 Matter Fused 154 | . . . . . . . 7 3 7 6 1 . 5 1 16 5 11 6 3 4 4 9 9 . 2 9 46 Heat Flow Errors 68 | . . . . . . . 3 2 4 6 1 . 2 . 5 7 1 3 1 . 2 3 4 . 1 4 19 Energy Discharges 58 | . . . . . . . 3 1 3 3 . . 6 . 6 4 2 2 1 . 1 5 4 . 1 4 12 Parts Rejected 10 | . . . . . . . . . . . . . . . 2 . . 1 . . . 1 1 . 1 . 4 Parts Fused 9 | . . . . . . . . . . 1 . . . . . 1 . 1 . . . 2 . . . 1 3 Data Loss (minor) 60 | . . . . . . . 3 3 2 4 . . 4 1 3 5 4 3 1 . . 4 5 . 2 3 13 Data Loss (major) 23 | . . . . . . . 1 . 1 1 . . . 1 2 2 2 1 . . 2 . 1 . 1 1 7 Misfires 24 | . . . . . . . 1 1 3 1 . . 2 1 4 . 4 . 2 . 1 1 1 . 1 . 1 Alerts 6 | . . . . . . . . . . 1 . . 1 . . . 1 . 1 . . 1 . . . . 1 Misdirections 24 | . . . . . . . . . 1 1 . . . . 5 . . . . . . 3 . . . . 14 Weapon Failures 63 | . . . . . . . 2 2 7 4 . . 1 . 5 1 . 1 . 1 2 6 3 . . 2 26 Overload Shots 22 | . . . . . . . . . . . . . 22 . . . . . . . . . . . . . . Effects 3 | . . . . . . . . . . . . . 3 . . . . . . . . . . . . . . Heat Surge 3 | . . . . . . . . . . . . . 3 . . . . . . . . . . . . . . Overflow Damage 1823 | . 64 . 7 30 . . 227 . . . . . 148 56 168 . 29 185 89 121 . 134 81 . 32 195 257 Projectiles 160 | . . . . . . . . . . . . . . . 40 . . 19 . 1 . 100 . . . . . Explosions 1210 | . 64 . 7 30 . . 227 . . . . . 148 56 128 . 29 166 . 58 . 34 81 . 23 59 100 Melee 453 | . . . . . . . . . . . . . . . . . . . 89 62 . . . . 9 136 157 Knockbacks 21 | . . . . . . . . . . . . . . . 7 . . 2 2 1 . 7 2 . . . . Impact 2 | . . . . . . . . . . . . . . . . . . . 1 1 . . . . . . . Kinetic 18 | . . . . . . . . . . . . . . . 6 . . 2 1 . . 7 2 . . . . Secondary 1 | . . . . . . . . . . . . . . . 1 . . . . . . . . . . . . Self-Inflicted Damage 801 | . 30 . 73 . . . 22 . . . . . 102 . 240 . 52 . . . . . 115 . 42 . 125 Shots 21 | . 2 . 3 . . . 1 . . . . . 2 . 3 . 1 . . . . . 3 . 3 . 3 Rammed 8 | . . . . 1 . . . . . . . . 1 . . . . . . . . . . . 1 . 5 Targets Rammed 8 | . . . . 1 . . . . . . . . 1 . . . . . . . . . . . 1 . 5 Kicked . | . . . . . . . . . . . . . . . . . . . . . . . . . . . . Crushed . | . . . . . . . . . . . . . . . . . . . . . . . . . . . . Highest Temperature 452 | . 37 . 159 184 237 . 374 214 241 236 55 115 377 77 290 261 233 189 386 452 190 118 237 44 298 201 266 Average Temperature 76 | . 13 . 33 28 60 . 78 102 68 91 23 57 94 27 96 96 45 78 176 78 47 29 114 19 108 70 82 Received Heat Transfer 5784 | . 282 . 555 435 144 . 819 . 210 54 . . 558 . 606 54 9 97 611 103 . 145 466 . 69 84 483 Effects 11 | . . . . . . . . . . . . . 3 . 1 . . . . 5 . . . . 2 . . Shutdowns 1 | . . . . . . . . . . . . . . . . . . . . 1 . . . . . . . Energy Bleed 1 | . . . . . . . . . . . . . 1 . . . . . . . . . . . . . . Interference 9 | . . . . . . . . . . . . . 2 . 1 . . . . 4 . . . . 2 . . Siege Activations . | . . . . . . . . . . . . . . . . . . . . . . . . . . . . Martial Activations . | . . . . . . . . . . . . . . . . . . . . . . . . . . . . Shielding Activations . | . . . . . . . . . . . . . . . . . . . . . . . . . . . . Robots Disrupted 1 | . . . . . . . . . . . . . 1 . . . . . . . . . . . . . . Combat Hostiles 1 | . . . . . . . . . . . . . 1 . . . . . . . . . . . . . . Robots Corrupted 6 | . . . . . . . . . . . . . 2 . . . . . 1 1 . . . . 1 . 1 Combat Hostiles 3 | . . . . . . . . . . . . . 2 . . . . . . . . . . . . . 1 Parts Fried 18 | . . . . . . . . . . . . . 10 . . . . . 2 . . . 2 . 4 . . Impact Corruptions 7 | . . . . . . . . . . . . . . . . . . . 4 2 . . . . 1 . . Robots Melted 2 | . . . . . . . . . . . . 1 1 . . . . . . . . . . . . . . Combat Hostiles 2 | . . . . . . . . . . . . 1 1 . . . . . . . . . . . . . . Parts Melted 40 | . . . . 1 . . 9 . 1 . . 2 23 . . . . . . . . . . . . . 4 Heat Transferred 13332 | . . . . . . . 2594 . . . . 200 9089 . 274 . . . . 50 . . 100 . 925 . 100 Parts Sabotaged 4 | . . . . . . . . . . . . . . . . . . . . . . . 2 . . . 2 Parts Stolen . | . . . . . . . . . . . . . . . . . . . . . . . . . . . . Parts Stripped . | . . . . . . . . . . . . . . . . . . . . . . . . . . . . Power Chain Reactions 6 | . . . . . . . 1 . 1 . . . 1 . . . . . . . . . 2 . . . 1 Alert | -11 -10 -10 -9 -9 -9 -9 -6 -6 -6 -6 -6 -5 -5 -5 -5 -5 -5 -5 -4 -4 -4 -4 -4 -4 -3 -3 -3 ------- Run | Yrd Mat Min Mat Sto Rec Scr Fac Was Fac Low Zio Pro Fac Was Fac Upp Upp War Pro Fac Was Fac Arm Lab Res Qua Frg Maximum Alert Level 5 | . 1 . 3 4 2 . 2 . 3 . . . 5 3 5 . . . . 3 1 5 5 . 1 2 5 Low Security (%) 23 | 100 88 100 27 . 1 . 21 100 42 . . . 3 . . . . . . 39 42 4 . . 65 40 . Level 1 20 | . 11 . 36 5 66 . 31 . 4 . . . 8 . . . . . . 4 57 . . . 34 27 11 Level 2 17 | . . . 18 17 32 . 47 . 18 . . . 36 . 15 . . . . 7 . 15 . . . 31 9 Level 3 17 | . . . 17 62 . . . . 34 . . . 18 100 40 . . . . 48 . 7 . . . . 3 Level 4 8 | . . . . 14 . . . . . . . . 25 . 38 . . . . . . 25 2 . . . 14 Level 5 11 | . . . . . . . . . . . . . 8 . 3 . . . . . . 24 65 . . . 61 High Security 1 | . . . . . . . . . . . . . . . 1 . . . . . . 23 31 . . . . Max Security . | . . . . . . . . . . . . . . . . . . . . . . . . . . . . Sterilizations 1 | . . . 1 . . . . . . . . . . . . . . . . . . . . . . . . Peak Influence 3818 | 15 398 146 916 1381 533 . 576 175 1009 . . . 2039 851 1770 . . . . 879 298 3321 3363 . 374 466 3818 Initial 1626 | . . 146 . 386 533 . . 175 83 . . . 35 713 574 . . . . . 298 89 1626 . . 194 247 Average 770 | 2 113 61 376 886 320 . 331 143 476 . . . 903 781 1045 . . . . 457 215 1604 2186 . 153 278 2029 Influence Increases 29180 | 35 1004 . 1706 1783 284 . 1278 64 1170 810 . 276 3550 188 1848 70 245 1142 55 1224 . 3902 2209 . 912 832 4593 Destroy 0b10 Robot/C 12580 | . 480 . 980 960 160 . 600 . 340 380 . 120 1120 . 640 60 200 980 40 480 . 1400 940 . 380 240 2080 Destroy 0b10 Robot/NC 1715 | 35 75 . 220 330 25 . 25 . 40 10 . . 150 . 155 . . 35 5 60 . 110 20 . 75 45 300 Destroy Leader 2252 | . 98 . 242 226 . . 122 . 74 20 . 20 250 . 106 10 30 . 10 96 . 272 126 . 116 36 398 Allied During Kill 2492 | . . . 38 25 7 . 2 . 452 400 . 136 369 . . . . 127 . . . 811 79 . . . 46 Trap Triggered on 0b10 50 | . 10 . . . . . . . . . . . 30 . . . . . . . . . 10 . . . . Successful Hack 446 | . 23 . 10 23 29 . 36 . 40 . . . 17 . 12 . . . . 18 . 80 4 . 71 21 62 Select Force Hacks 330 | . 60 . 60 60 60 . . . . . . . 60 . . . . . . . . . . . . 30 . Disable Machine 2220 | . 120 . 75 75 . . 300 . 135 . . . 345 . 135 . . . . 150 . 330 135 . 30 180 210 Anti-Garrison Action 150 | . . . . . . . . . . . . . . . . . . . . . . . . . . . 150 Destroy Structure 3645 | . 123 . 81 69 3 . 58 64 59 . . . 444 188 380 . . . . 300 . 794 550 . 60 160 312 Partial Spotted 345 | . . . . . . . . . . . . . 45 . 15 . . . . 30 . 30 30 . 60 15 120 Lose Combat Pursuer 2955 | . 15 . . 15 . . 135 . 30 . . . 720 . 405 . 15 . . 90 . 75 315 . 120 105 915 Influence Decreases 25362 | 35 628 376 790 1330 1453 200 777 446 304 679 1116 220 1567 1406 909 930 483 1091 768 370 726 709 2167 3363 566 738 1215 Entered New Map 13429 | . . 230 . 530 836 200 . 326 36 365 1116 . 21 1326 247 652 171 662 713 . 556 39 1695 3363 . 152 193 Time Decay 8762 | 35 478 146 730 750 607 . 456 120 238 254 . 160 656 80 422 278 302 319 55 320 170 310 222 . 426 486 742 Lost Part 1280 | . . . 20 10 10 . 250 . 10 20 . . 70 . 90 . 10 40 . 50 . 40 160 . 140 100 260 Lost Ally 991 | . . . 40 40 . . 71 . 20 40 . 60 220 . . . . 70 . . . 320 90 . . . 20 Purge Threat 900 | . 150 . . . . . . . . . . . 600 . 150 . . . . . . . . . . . . Squads Dispatched 159 | . 4 . 7 9 . . 18 . 4 . . . 32 . 15 . . . . 6 . 22 15 . 5 10 12 Investigation 58 | . 3 . 4 2 . . 8 . 2 . . . 10 . 3 . . . . 2 . 8 2 . 1 4 9 Extermination 22 | . . . . . . . 4 . . . . . 6 . 1 . . . . 1 . 2 1 . 3 3 1 Reinforcement 35 | . 1 . 2 1 . . 3 . 1 . . . 8 . 6 . . . . 2 . 3 2 . 1 3 2 Assault 40 | . . . 1 6 . . . . 1 . . . 8 . 4 . . . . 1 . 9 10 . . . . Garrison 4 | . . . . . . . 3 . . . . . . . 1 . . . . . . . . . . . . Intercept . | . . . . . . . . . . . . . . . . . . . . . . . . . . . . Searches Triggered . | . . . . . . . . . . . . . . . . . . . . . . . . . . . . Construction Impeded 9 | . . . . . . . 1 . 1 . . . 1 . 2 . . . . . . 2 . . 1 1 . Haulers Reinforced 10 | . . . . . . . 1 . . . . . 4 . 2 . . . . 2 . . . . . 1 . Active Scanning Responses . | . . . . . . . . . . . . . . . . . . . . . . . . . . . . Cargo Convoy Interrupts 1 | . . . . . . . . . . . . . . . 1 . . . . . . . . . . . . Stealth | -11 -10 -10 -9 -9 -9 -9 -6 -6 -6 -6 -6 -5 -5 -5 -5 -5 -5 -5 -4 -4 -4 -4 -4 -4 -3 -3 -3 --------- Run | Yrd Mat Min Mat Sto Rec Scr Fac Was Fac Low Zio Pro Fac Was Fac Upp Upp War Pro Fac Was Fac Arm Lab Res Qua Frg Distress Signals 46 | . 2 . 4 2 . . 2 . 1 . . . 6 . 2 . . . . . . 2 5 . 4 . 16 Communications Jammed 2 | . . . . . . . . . . . . . . . . . . . . . . . . . 2 . . Distress Signals 2 | . . . . . . . . . . . . . . . . . . . . . . . . . 2 . . Times Spotted 1247 | . 28 . 60 70 6 . 49 7 20 19 . 5 121 6 77 3 14 127 2 31 . 60 83 . 43 22 394 Peak Tracking Total 23 | . 4 . 6 7 5 . 8 2 8 7 . 4 11 5 23 4 5 21 1 14 . 11 18 . 6 9 19 Tactical Retreats 101 | . 1 . . 1 . . 7 1 2 . . . 23 . 9 2 1 . . 3 . 2 10 . 5 4 30 Traps | -11 -10 -10 -9 -9 -9 -9 -6 -6 -6 -6 -6 -5 -5 -5 -5 -5 -5 -5 -4 -4 -4 -4 -4 -4 -3 -3 -3 ------- Run | Yrd Mat Min Mat Sto Rec Scr Fac Was Fac Low Zio Pro Fac Was Fac Upp Upp War Pro Fac Was Fac Arm Lab Res Qua Frg Traps Triggered 15 | . 1 . 1 . . . 5 . . . . . 1 . 1 . . . . 2 . . 1 . 1 . 2 Indirectly 2 | . . . . . . . 1 . . . . . . . . . . . . . . . . . . . 1 Trap Hack Attempts 17 | . . . . . . . . . . . . . . . . . . . . . . . 17 . . . . Triggered . | . . . . . . . . . . . . . . . . . . . . . . . . . . . . Disarmed . | . . . . . . . . . . . . . . . . . . . . . . . . . . . . Reprogrammed 19 | . 6 . . 1 . . . . . . . . 9 . . . . . . . . . 3 . . . . Reused 5 | . 1 . . . . . . . . . . . 3 . . . . . . . . . 1 . . . . Traps Extracted . | . . . . . . . . . . . . . . . . . . . . . . . . . . . . Installed . | . . . . . . . . . . . . . . . . . . . . . . . . . . . . Triggered 5 | . 1 . . . . . . . . . . . 3 . . . . . . . . . 1 . . . . Machines | -11 -10 -10 -9 -9 -9 -9 -6 -6 -6 -6 -6 -5 -5 -5 -5 -5 -5 -5 -4 -4 -4 -4 -4 -4 -3 -3 -3 ---------- Run | Yrd Mat Min Mat Sto Rec Scr Fac Was Fac Low Zio Pro Fac Was Fac Upp Upp War Pro Fac Was Fac Arm Lab Res Qua Frg Machines Disabled 157 | . 8 . 6 5 . . 20 . 9 1 . . 23 . 9 . . 1 . 10 . 27 9 . 2 12 15 Max in Single Turn 8 | . 2 . 1 1 . . 8 . 6 . . . 7 . 5 . . 1 . 2 . 2 1 . 1 2 6 Garrison Access 7 | . . . . . . . 1 . . . . . 3 . . . . . . 1 . . . . . 1 1 Machines Repaired . | . . . . . . . . . . . . . . . . . . . . . . . . . . . . Machines Dismantled . | . . . . . . . . . . . . . . . . . . . . . . . . . . . . Machines Sabotaged . | . . . . . . . . . . . . . . . . . . . . . . . . . . . . Overloaded Fab Kills . | . . . . . . . . . . . . . . . . . . . . . . . . . . . . Hacking | -11 -10 -10 -9 -9 -9 -9 -6 -6 -6 -6 -6 -5 -5 -5 -5 -5 -5 -5 -4 -4 -4 -4 -4 -4 -3 -3 -3 --------- Run | Yrd Mat Min Mat Sto Rec Scr Fac Was Fac Low Zio Pro Fac Was Fac Upp Upp War Pro Fac Was Fac Arm Lab Res Qua Frg Machines Accessed 180 | . 9 . 11 14 13 6 12 . 4 1 1 . 23 . 7 1 . 4 1 6 . 17 5 . 14 14 17 Terminals 77 | . 6 . 6 10 6 . 2 . 1 . . . 4 . 1 . . . 1 2 . 7 2 . 11 10 8 Fabricators 16 | . . . . . . . . . . . . . 5 . 3 . . . . . . 2 3 . 1 . 2 Repair Stations 14 | . 1 . 2 2 . . 2 . . . . . 2 . 1 . . . . 1 . 1 . . . 1 1 Recycling Units 39 | . 2 . 1 2 7 . 5 . 3 . . . 6 . 2 . . . . 2 . 6 . . . . 3 Scanalyzers 14 | . . . 2 . . . 2 . . . . . 3 . . . . . . . . 1 . . 1 2 3 Garrison Access 7 | . . . . . . . 1 . . . . . 3 . . . . . . 1 . . . . 1 1 . Total Hacks 528 | . 38 . 43 56 37 59 20 . 8 7 4 . 56 . 15 1 . 8 1 15 . 37 20 . 29 28 46 Successful 337 | . 25 . 39 41 27 59 11 . 3 7 4 . 31 . 7 1 . 8 1 8 . 23 10 . 10 6 16 Failed 186 | . 12 . 3 15 10 . 9 . 5 . . . 24 . 8 . . . . 7 . 13 10 . 19 22 29 Catastrophic 31 | . . . . . . . . . 1 . . . 3 . 3 . . . . . . 1 4 . 3 6 10 Database Lockouts 5 | . 1 . 1 . . . . . . . . . 1 . . . . . . . . 1 . . . . 1 Manual 280 | . 21 . 24 28 31 . 11 . 7 . 1 . 26 . 12 . . 1 . 11 . 27 10 1 18 12 39 Terminals 213 | . 26 . 20 32 14 . 4 . 2 . . . 13 . 1 . . . 1 3 . 22 10 . 23 19 23 Fabricators 38 | . . . . . . . . . . . . . 13 . 7 . . . . . . 2 10 . 2 . 4 Repair Stations 45 | . 7 . 10 9 . . 4 . . . . . 3 . 3 . . . . 3 . 1 . . . 2 3 Recycling Units 98 | . 5 . 5 15 23 . 6 . 6 . . . 9 . 4 . . . . 8 . 10 . . . . 7 Scanalyzers 44 | . . . 8 . . . 5 . . . . . 12 . . . . . . . . 2 . . 3 5 9 Garrison Access 11 | . . . . . . . 1 . . . . . 6 . . . . . . 1 . . . . 1 2 . Terminal Hacks 126 | . 6 . 6 13 3 59 1 . 1 7 4 . 6 . . 1 . 8 1 . . 5 1 . 3 1 . Record 74 | . . . . . . 59 . . . 7 . . . . . . . 7 1 . . . . . . . . Part Schematic 7 | . . . . 2 1 . . . . . 4 . . . . . . . . . . . . . . . . Robot Schematic 1 | . . . . . . . 1 . . . . . . . . . . . . . . . . . . . . Robot Analysis 10 | . 1 . 3 2 1 . . . . . . . . . . . . . . . . 3 . . . . . Prototype ID Bank 9 | . 2 . 3 2 . . . . 1 . . . 1 . . . . . . . . . . . . . . Open Door 7 | . . . . 4 . . . . . . . . . . . 1 . 1 . . . . . . . 1 . Branch Access Points 2 | . . . . . . . . . . . . . . . . . . . . . . 1 . . 1 . . Terminal Index 5 | . 1 . . . 1 . . . . . . . . . . . . . . . . 1 1 . 1 . . Scanalyzer Index 1 | . . . . . . . . . . . . . . . . . . . . . . . . . 1 . . Unreport Threat 1 | . 1 . . . . . . . . . . . . . . . . . . . . . . . . . . Locate Traps 1 | . . . . . . . . . . . . . 1 . . . . . . . . . . . . . . Reprogram Traps 7 | . 1 . . 2 . . . . . . . . 4 . . . . . . . . . . . . . . Zone Layout 1 | . . . . 1 . . . . . . . . . . . . . . . . . . . . . . . Fabricator Hacks 10 | . . . . . . . . . . . . . 4 . . . . . . . . . 6 . . . . Network Status 2 | . . . . . . . . . . . . . 1 . . . . . . . . . 1 . . . . Load Schematic 6 | . . . . . . . . . . . . . 3 . . . . . . . . . 3 . . . . Build 2 | . . . . . . . . . . . . . . . . . . . . . . . 2 . . . . Repair Station Hacks 25 | . 5 . 8 8 . . 1 . . . . . . . 2 . . . . 1 . . . . . . . Scan Component 14 | . 3 . 4 4 . . 1 . . . . . . . 1 . . . . 1 . . . . . . . Repair 11 | . 2 . 4 4 . . . . . . . . . . 1 . . . . . . . . . . . . Recycling Unit Hacks 6 | . . . 1 3 1 . . . . . . . . . . . . . . 1 . . . . . . . Retrieve Components 6 | . . . 1 3 1 . . . . . . . . . . . . . . 1 . . . . . . . Scanalyzer 17 | . . . 6 . . . 1 . . . . . 5 . . . . . . . . 1 . . 1 . 3 Insert Component 8 | . . . 3 . . . 1 . . . . . 2 . . . . . . . . . . . . . 2 Analyze 4 | . . . 3 . . . . . . . . . 1 . . . . . . . . . . . . . . Retrieve Study 5 | . . . . . . . . . . . . . 2 . . . . . . . . 1 . . 1 . 1 Garrison Access Hacks 6 | . . . . . . . 1 . . . . . 3 . . . . . . 1 . . . . . 1 . Seal Access 6 | . . . . . . . 1 . . . . . 3 . . . . . . 1 . . . . . 1 . Unauthorized Hacks 147 | . 14 . 18 17 23 . 7 . 2 . . . 13 . 5 . . . . 5 . 17 3 . 6 4 13 Terminals 62 | . 10 . 11 8 6 . . . . . . . 1 . . . . . . . . 7 2 . 6 2 9 Track 6 | . . . . 2 . . . . . . . . . . . . . . . . . 1 . . . . 3 Assimilate 1 | . . . . . . . . . . . . . . . . . . . . . . . . . . . 1 Botnet 30 | . 4 . 4 1 1 . . . . . . . 1 . . . . . . . . 5 1 . 6 2 5 Operators 4 | . 1 . 1 . . . . . . . . . . . . . . . . . . 1 1 . . . . Skim 21 | . 5 . 6 5 5 . . . . . . . . . . . . . . . . . . . . . . Fabricators 8 | . . . . . . . . . . . . . 3 . 1 . . . . . . 2 1 . . . 1 Report 1 | . . . . . . . . . . . . . 1 . . . . . . . . . . . . . . Prioritize 1 | . . . . . . . . . . . . . . . . . . . . . . . 1 . . . . Liberate 4 | . . . . . . . . . . . . . 1 . 1 . . . . . . 2 . . . . . Haulers 1 | . . . . . . . . . . . . . 1 . . . . . . . . . . . . . . Recompile 1 | . . . . . . . . . . . . . . . . . . . . . . . . . . . 1 Repair Stations 10 | . . . 2 1 . . 1 . . . . . 2 . 1 . . . . . . 1 . . . 1 1 Mechanics 3 | . . . 1 1 . . . . . . . . . . . . . . . . . 1 . . . . . Patch 7 | . . . 1 . . . 1 . . . . . 2 . 1 . . . . . . . . . . 1 1 Recycling Units 63 | . 4 . 4 8 17 . 6 . 2 . . . 5 . 3 . . . . 5 . 7 . . . . 2 Monitor 1 | . . . . 1 . . . . . . . . . . . . . . . . . . . . . . . Reject 12 | . 1 . 1 2 7 . . . . . . . . . . . . . . 1 . . . . . . . Recyclers 10 | . 1 . 1 1 1 . 1 . 1 . . . . . 1 . . . . 2 . 1 . . . . . Mask 10 | . . . 1 2 7 . . . . . . . . . . . . . . . . . . . . . . Tunnel 7 | . 2 . 1 2 2 . . . . . . . . . . . . . . . . . . . . . . Fedlink 19 | . . . . . . . 5 . 1 . . . 5 . 2 . . . . 2 . 3 . . . . 1 Scraphulk 4 | . . . . . . . . . . . . . . . . . . . . . . 3 . . . . 1 Scanalyzers 4 | . . . 1 . . . . . . . . . 2 . . . . . . . . . . . . 1 . Extract 4 | . . . 1 . . . . . . . . . 2 . . . . . . . . . . . . 1 . Garrison Access . | . . . . . . . . . . . . . . . . . . . . . . . . . . . . Data Cores Recovered 5 | . . . . . . . . . . . . . 2 . . . . . . . . 1 . . 1 1 . Used 2 | . . . . . . . . . . . . . . . . . . . . . . 1 . . 1 . . Hacking Detections 125 | . 8 . 11 11 10 . 5 . 3 . . . 12 . 7 . . . . 4 . 9 4 . 13 13 15 Full Trace Events 12 | . 1 . 2 . . . 2 . . . . . 1 . . . . . . . . . . . 1 2 3 Feedback Events . | . . . . . . . . . . . . . . . . . . . . . . . . . . . . Feedback Blocked 1 | . . . . . . . . . . . . . . . . . . . . . . . . . . 1 . Robot Schematics Acquired 4 | . . . . . . . 1 . . . 3 . . . . . . . . . . . . . . . . Robots Built 2 | . . . . . . . . . . . . . . . . . . . . . . . 2 . . . . Authchips 2 | . . . . . . . . . . . . . . . . . . . . . . . 2 . . . . Time 277 | . . . . . . . . . . . . . . . . . . . . . . . 277 . . . . Total Robot Build Rating 18 | . . . . . . . . . . . . . . . . . . . . . . . 18 . . . . Part Schematics Acquired 33 | . . . 5 2 1 . . . . . 19 . 6 . . . . . . . . . . . . . . Parts Built . | . . . . . . . . . . . . . . . . . . . . . . . . . . . . Authchips . | . . . . . . . . . . . . . . . . . . . . . . . . . . . . Time . | . . . . . . . . . . . . . . . . . . . . . . . . . . . . Total Part Build Rating . | . . . . . . . . . . . . . . . . . . . . . . . . . . . . Part Studies Acquired 4 | . . . . . . . . . . . . . 1 . . . . . . . . 1 . . 1 . 1 Parts Repaired 11 | . 2 . 4 4 . . . . . . . . . . 1 . . . . . . . . . . . . Time 436 | . 79 . 166 141 . . . . . . . . . . 50 . . . . . . . . . . . . Parts Recycled . | . . . . . . . . . . . . . . . . . . . . . . . . . . . . Recycled Matter . | . . . . . . . . . . . . . . . . . . . . . . . . . . . . Retrieved Matter . | . . . . . . . . . . . . . . . . . . . . . . . . . . . . Retrieved Components 39 | . . . 10 18 2 . . . . . . . . . . . . . . 9 . . . . . . . Parts Scanalyzed 7 | . . . 3 . . . 1 . . . . . 2 . . . . . . . . . . . . . 1 Part Schematics Acquired 4 | . . . 3 . . . . . . . . . 1 . . . . . . . . . . . . . . Parts Damaged 2 | . . . . . . . . . . . . . 1 . . . . . . . . . . . . . 1 Bothacking | -11 -10 -10 -9 -9 -9 -9 -6 -6 -6 -6 -6 -5 -5 -5 -5 -5 -5 -5 -4 -4 -4 -4 -4 -4 -3 -3 -3 ------------ Run | Yrd Mat Min Mat Sto Rec Scr Fac Was Fac Low Zio Pro Fac Was Fac Upp Upp War Pro Fac Was Fac Arm Lab Res Qua Frg Used RIF Installer . | . . . . . . . . . . . . . . . . . . . . . . . . . . . . Robots Hacked 1 | . . . . . . . . . . . . . . . 1 . . . . . . . . . . . . Non-combat 1 | . . . . . . . . . . . . . . . 1 . . . . . . . . . . . . Combat . | . . . . . . . . . . . . . . . . . . . . . . . . . . . . Robot Hacks Applied 2 | . . . . . . . . . . . . . . . 2 . . . . . . . . . . . . no_distress 1 | . . . . . . . . . . . . . . . 1 . . . . . . . . . . . . find_fabricator 1 | . . . . . . . . . . . . . . . 1 . . . . . . . . . . . . Relay Couplers Released 5 | . . . . . . . 4 . . . . . . . . . . . . . . . . . . . 1 Machine Destruction 1 | . . . . . . . . . . . . . . . . . . . . . . . . . . . 1 Programmers 4 | . . . . . . . 4 . . . . . . . . . . . . . . . . . . . . Fabnet Peak Effective % . | . . . . . . . . . . . . . . . . . . . . . . . . . . . . Robots Rewired 17 | . . . . . 6 . . . . 1 . . . . . . . 5 . . . . 5 . . . . Allies Hacked 4 | . . . . . . . . . . . . . 1 . . . . . . . . 2 . . . . 1 Hacks Repelled 1 | . . . . . . . . . . . . . . . . . . . . . . . 1 . . . . Allies | -11 -10 -10 -9 -9 -9 -9 -6 -6 -6 -6 -6 -5 -5 -5 -5 -5 -5 -5 -4 -4 -4 -4 -4 -4 -3 -3 -3 -------- Run | Yrd Mat Min Mat Sto Rec Scr Fac Was Fac Low Zio Pro Fac Was Fac Upp Upp War Pro Fac Was Fac Arm Lab Res Qua Frg Total Allies 76 | . . 3 . 2 6 . . 19 . 2 . . 6 . . . . 5 . . 20 5 7 . . . 1 Largest Group 21 | . . 3 3 2 6 6 6 19 13 14 11 11 8 . . . . 5 1 . 20 21 5 . . . 1 Highest-Rated Group 854 | . . 40 40 62 84 84 84 684 534 653 433 427 323 . . . . 266 64 . 781 854 281 . . . 139 Highest-Rated Ally 139 | . . 16 16 31 34 34 34 50 50 127 47 47 47 . . . . 64 64 . 50 123 67 . . . 139 Initial UFD Resources 90 | . . . . . . . 23 43 43 45 45 49 49 69 69 73 73 73 76 76 90 90 81 81 83 83 83 Total Orders 54 | . . . . . 7 2 7 . . . . . 11 . 2 . . 9 . 3 . 5 8 . . . . STAY 12 | . . . . . 1 1 1 . . . . . . . . . . 6 . . . 1 2 . . . . FOLLOW 17 | . . . . . 3 1 2 . . . . . 1 . . . . 3 . . . 3 4 . . . . AID 3 | . . . . . . . . . . . . . . . . . . . . . . 1 2 . . . . DROP 1 | . . . . . . . 1 . . . . . . . . . . . . . . . . . . . . COLLECT 4 | . . . . . 3 . 1 . . . . . . . . . . . . . . . . . . . . EXPLORE 2 | . . . . . . . 2 . . . . . . . . . . . . . . . . . . . . RETURN 15 | . . . . . . . . . . . . . 10 . 2 . . . . 3 . . . . . . . Ally Attacks 790 | . . . 46 25 . . 5 115 55 83 . 31 142 . . . . 9 . . . 229 22 . . . 28 Total Damage 27242 | . . . 403 376 . . 193 3701 2196 2324 . 686 3699 . . . . 282 . . . 8982 2689 . . . 1711 Kills 170 | . . . 10 3 . . . 12 11 15 . 3 21 . . . . 3 . . . 72 10 . . . 10 Allies Corrupted 6 | . . . . . . . . . . . . . 1 . . . . . . . . 5 . . . . . Allies Melted 5 | . . . . . . . . . . . . . . . . . . 1 . . . 1 . . . . 3 Intel | -11 -10 -10 -9 -9 -9 -9 -6 -6 -6 -6 -6 -5 -5 -5 -5 -5 -5 -5 -4 -4 -4 -4 -4 -4 -3 -3 -3 ------- Run | Yrd Mat Min Mat Sto Rec Scr Fac Was Fac Low Zio Pro Fac Was Fac Upp Upp War Pro Fac Was Fac Arm Lab Res Qua Frg Active Infowar (turns) 17698 | 85 2182 370 737 . . 1817 665 . 112 178 2 2 1594 171 515 617 656 252 . 746 348 344 . 12 1326 1269 3698 Optics 5628 | . . . . . . . . . . . . . . . . . . . . 746 348 344 . 12 1326 443 2409 Sensors 3992 | . . . . . . . . . 112 178 . . . 171 515 617 656 252 . . . . . . . 1025 466 Terrain 3374 | 85 2182 370 737 . . . . . . . . . . . . . . . . . . . . . . . . Structural 2730 | . . . 248 . . 1817 665 . . . . . . . . . . . . . . . . . . . . Traps 1596 | . . . . . . . . . . . . 2 1594 . . . . . . . . . . . . . . Decoding 4376 | . . . . . . . . . . . . . . . . . . . . . . . . . 1304 1269 1803 Machine Analysis 1446 | . . . . . . . . . . . . . . . . . . . . . . . . . . 823 623 Jamming 249 | . . . . . . . . . . . . . . . . . . . . . . . . . 249 . . ECM 4 | . . . . . . . . . . . 2 . . . . . . . . . . . . . . 2 . Robot Analysis Total 10 | . 1 . 3 2 1 . . . . . . . . . . . . . . . . 3 . . . . . Derelict Logs Recovered 8 | . . 1 . . . . . . . 2 1 2 . . . 1 1 . . . . . . . . . . Drone Launches 22 | . . . . . . . 7 . . . . . 9 . 2 . . . . 4 . . . . . . . Drone Recoveries 16 | . . . . . . . 2 . . . . . 9 . 2 . . . . 3 . . . . . . . Decoded 0b10 Intel 57 | . . . . . . . . . . . . . . . . . . . . . . . . . 23 16 18 Traps 22 | . . . . . . . . . . . . . . . . . . . . . . . . . 7 7 8 Emergency Access 33 | . . . . . . . . . . . . . . . . . . . . . . . . . 16 8 9 Garrisons 2 | . . . . . . . . . . . . . . . . . . . . . . . . . . 1 1 Exploration | -11 -10 -10 -9 -9 -9 -9 -6 -6 -6 -6 -6 -5 -5 -5 -5 -5 -5 -5 -4 -4 -4 -4 -4 -4 -3 -3 -3 ------------- Run | Yrd Mat Min Mat Sto Rec Scr Fac Was Fac Low Zio Pro Fac Was Fac Upp Upp War Pro Fac Was Fac Arm Lab Res Qua Frg Turns Passed 37970 | 155 2343 370 4779 3999 1968 3580 1721 256 516 556 869 377 2454 171 1050 618 668 1848 492 790 348 905 691 14 1326 1269 3837 Spaces Moved 32456 | 64 943 153 1708 1360 747 1658 928 259 556 775 1447 576 3393 258 1272 1022 1036 2643 340 811 344 1318 641 19 1700 1639 4846 Core 255 | 7 . . . . . 243 . . . . . . . . 1 . . . 2 . . . 1 . 1 . . Treads 6788 | 57 943 153 1708 1360 747 1415 405 . . . . . . . . . . . . . . . . . . . . Legs 92 | . . . . . . . 92 . . . . . . . . . . . . . . . . . . . . Wheels . | . . . . . . . . . . . . . . . . . . . . . . . . . . . . Hover 25321 | . . . . . . . 431 259 556 775 1447 576 3393 258 1271 1022 1036 2643 338 811 344 1318 640 19 1699 1639 4846 Flight . | . . . . . . . . . . . . . . . . . . . . . . . . . . . . Fastest Speed 33 | 50 160 240 240 240 240 50 66 66 53 48 48 50 33 43 33 52 52 43 54 48 47 40 46 47 38 40 40 Average Speed 87 | 153 206 240 240 240 240 211 125 69 57 49 49 50 46 48 43 54 52 52 64 62 56 47 48 47 46 46 43 Slowest Speed 250 | 160 240 240 240 240 240 240 250 106 106 53 50 50 102 95 250 108 105 116 250 217 113 122 250 47 250 137 140 Overloaded Moves 308 | . . . . . . . . . . . . . 116 . 88 . . 19 . 38 . 47 . . . . . Propulsion Burnouts . | . . . . . . . . . . . . . . . . . . . . . . . . . . . . Robots Hopped 1 | . . . . . . . . . . . . . . . . . . 1 . . . . . . . . . Potential Cave-ins 22 | . . . . . . . . . . . . . . . . . . . . . . . 6 . 3 . 13 Cave-ins Triggered 1 | . . . . . . . . . . . . . . . . . . . . . . . . . . . 1 Exploration Rate (%) 62 | 5 86 42 96 96 91 88 30 88 13 87 85 53 70 99 32 95 77 70 58 25 95 29 49 6 33 78 60 Regions Visited 27 Branch Regions 15 Pre-discovered Areas 27 | . 4 . 3 2 5 5 1 . . 3 4 . . . . . . . . . . . . . . . . Known Exits Taken 15 | . 1 1 . 1 . . . . 1 1 . 1 . . 1 1 1 1 1 . . 1 . 1 1 1 . Unknown Exits Taken 6 | 1 . . 1 . 1 1 . . . . 1 . . . . . . . . . . . 1 . . . . Scrap Searched 27 | . . . . . . 11 . . . 2 4 2 . . . 3 3 . 2 . . . . . . . . Spaces Dug 437 | . 19 . 5 . . . 9 2 1 6 . 5 17 . 8 19 84 . 2 21 . 39 109 . 17 32 42 Terrain Destroyed 2468 | . 129 . 79 57 . . 59 5 2 6 . 16 235 168 211 57 173 185 35 189 . 123 373 . 36 96 234 Melee 40 | . 3 . 5 . . . 9 . 1 . . . . . . . . . 2 2 . . . . . 10 8 Projectile 475 | . . . . . . . . 5 1 6 . 16 47 1 74 1 11 17 15 42 . 23 19 . 26 5 166 AOE 1948 | . 126 . 74 57 . . 50 . . . . . 188 167 137 56 162 168 18 145 . 100 353 . 8 80 59 Terrain Rammed . | . . . . . . . . . . . . . . . . . . . . . . . . . . . . Walls Destroyed . | . . . . . . . . . . . . . . . . . . . . . . . . . . . . Machines Disabled . | . . . . . . . . . . . . . . . . . . . . . . . . . . . . Actions | -11 -10 -10 -9 -9 -9 -9 -6 -6 -6 -6 -6 -5 -5 -5 -5 -5 -5 -5 -4 -4 -4 -4 -4 -4 -3 -3 -3 --------- Run | Yrd Mat Min Mat Sto Rec Scr Fac Was Fac Low Zio Pro Fac Was Fac Upp Upp War Pro Fac Was Fac Arm Lab Res Qua Frg Total 38602 | 89 1202 157 2079 1719 879 1725 1246 312 682 907 1606 639 4005 282 1592 1080 1127 3033 582 979 492 1494 878 22 2064 1997 5733 Wait 2383 | . 111 . 114 129 27 . 99 20 57 101 122 47 260 2 136 20 44 185 211 36 122 68 26 . 118 176 152 Move 32428 | 63 942 152 1707 1359 746 1657 928 258 555 774 1446 575 3393 257 1271 1021 1035 2640 339 811 343 1317 640 18 1698 1638 4845 Hop 1 | . . . . . . . . . . . . . . . . . . 1 . . . . . . . . . Pick Up 360 | 5 25 2 29 5 9 28 14 3 1 . 1 . 35 4 15 6 5 28 4 7 2 14 19 . 34 23 42 Fast Attach 254 | 7 2 . 2 2 . 7 16 6 7 3 13 1 34 . 14 2 2 14 2 19 3 5 18 . 16 13 46 Attach 230 | . 1 . 9 1 1 1 23 1 . . 1 . 24 3 17 8 4 15 5 11 . 8 25 2 17 14 39 Detach 141 | . 1 . 2 1 . . 3 2 1 . 4 . 26 . 6 6 2 8 4 6 2 3 15 . 3 8 38 Swap 503 | . 32 1 38 33 4 12 22 2 11 6 1 . 45 3 31 7 13 13 . 20 9 14 20 2 39 27 98 Drop 477 | . 14 2 30 20 12 20 18 8 13 . 17 1 59 4 21 5 3 33 1 16 8 13 13 . 43 26 77 Fire 1555 | 14 71 . 143 165 22 . 102 12 36 21 1 15 127 9 80 5 19 38 12 50 3 52 76 . 95 40 347 Melee 104 | . 3 . 5 3 . . 21 . 1 . . . . . . . . . 4 3 . . 7 . . 32 25 Ram 7 | . . . . . . . . . . . . . 1 . . . . . . . . . . . 1 . 5 Kick . | . . . . . . . . . . . . . . . . . . . . . . . . . . . . Crush 1 | . . . . 1 . . . . . . . . . . . . . . . . . . . . . . . Escape Stasis 7 | . . . . . . . . . . . . . . . . . . . . . . . . . . . 7 Rewire 123 | . . . . . 58 . . . . 2 . . 1 . . . . 58 . . . . 2 . . . 2 Trap 17 | . . . . . . . . . . . . . . . . . . . . . . . 17 . . . . Miscellaneous 11 | . . . . . . . . . . . . . . . 1 . . . . . . . . . . . 10 Route ------- -11/Scrapyard -10/Materials (discovered 6 exits: *Mat x3 / *Min x2 / Sub) -10/Mines (discovered 2 exits: *Mat x2) -9/Materials (discovered 6 exits: *Mat x3 / *Min x2 / *Sto) -9/Storage (discovered 2 exits: *Mat / *Rec) -9/Recycling (discovered 2 exits: [*Fac] / *Scr) -9/Scraptown (discovered 2 exits: *Fac x2) -6/Factory (discovered 6 exits: *Fac x3 / *Low x2 / Ext) -6/Waste -6/Factory -6/Lower Caves (discovered 3 exits: *Low / Fac / *Zio) -6/Zion -5/Proximity Caves -5/Factory (discovered 6 exits: *Fac x4 / *Upp x2) -5/Waste -5/Factory (discovered 2 exits: *Fac / *Upp) -5/Upper Caves -5/Upper Caves (discovered 2 exits: *Fac / *War) -5/Warlord -4/Proximity Caves -4/Factory (discovered 6 exits: Res x3 / Upp x2 / Arm) -4/Waste -4/Factory (discovered 3 exits: *Upp x2 / *Arm) -4/Armory (discovered 2 exits: *Res / *Lab) -4/Lab -3/Research (discovered 3 exits: [*Res] / *Qua x2) -3/Quarantine (discovered 2 exits: *Sec / *Frg) -3/Protoforge History --------- Turn | Location | Event 10 | -11/Scrapyard | Discovered new exit (range 15) 156 | -11/Scrapyard | Entered Materials 227 | -10/Materials | Central database locked down 290 | -10/Materials | Discovered new exit (range 5) 301 | -10/Materials | Build established: Mutant 345 | -10/Materials | Discovered new exit (range 11) 1023 | -10/Materials | Identified exit to Materials 1023 | -10/Materials | Identified exit to Mines 1107 | -10/Materials | Learned Storage trap positions 1134 | -10/Materials | Learned location of 1 exit from Storage 1152 | -10/Materials | Learned Storage security intel 1159 | -10/Materials | Identified exit to Subcaves 1159 | -10/Materials | Learned location of 1 exit from Materials 2050 | -10/Materials | Repaired Lgt. Treads 2105 | -10/Materials | Repaired Broken Imp. Terrain Scanner 2499 | -10/Materials | Entered Mines 2550 | -10/Mines | Found a damaged Exp. Sensor Array with a note attached 2557 | -10/Mines | Found Prototype Device 2606 | -10/Mines | Learned Materials stockpile data 2678 | -10/Mines | A weapon hastily lodged in a ceiling crevice suddenly fell to the ground 2737 | -10/Mines | Assisted by bots powering up and referring to "LRC-V3" 2869 | -10/Mines | Entered Materials 2869 | -9/Materials | Accompanied by 3 allies 2869 | -9/Materials | Evolved 2 slots: Utility x1, Weapon x1 2870 | -9/Materials | Identified exit to Mines 2968 | -9/Materials | Discovered exit to Mines (range 15) 3172 | -9/Materials | Build established: Skirmisher 3723 | -9/Materials | Repaired Rnf. Ion Engine? 3786 | -9/Materials | Discovered new exit (range 5) 3986 | -9/Materials | Build established: Hacker-Gunner 4313 | -9/Materials | Discovered new exit (range 7) 4438 | -9/Materials | Repaired Imp. Treads 5119 | -9/Materials | Identified Exp. Sensor Array 5460 | -9/Materials | Repaired Imp. Assault Rifle 5512 | -9/Materials | Repaired Imp. Assault Rifle 6157 | -9/Materials | Central database locked down 6310 | -9/Materials | Discovered new exit (range 15) 6919 | -9/Materials | Build established: Tank 7269 | -9/Materials | First assault squad dispatched 7300 | -9/Materials | Identified exit to Materials 7354 | -9/Materials | Core integrity fell below 50% 7365 | -9/Materials | Learned location of Storage (-9) 7512 | -9/Materials | Sterilization system engaged 7512 | -9/Materials | Non-combat units ordered to evacuate 7533 | -9/Materials | Learned location of 1 exit from Storage 7554 | -9/Materials | Learned 4 Recycling zone layouts 7586 | -9/Materials | Learned location of 2 exits from Materials 7612 | -9/Materials | Combat units ordered to evacuate 7648 | -9/Materials | Entered Storage 7649 | -9/Storage | Identified exit to Recycling 7650 | -9/Storage | Loaded intel: 13 trap records 7929 | -9/Storage | Met a pair of Derelict thieves 7952 | -9/Storage | Used back door to open Recycling access 8042 | -9/Storage | Build established: Hacker-Gunner 8068 | -9/Storage | Destroyed 7 combat bots 8848 | -9/Storage | First assault squad dispatched 9581 | -9/Storage | Repaired Imp. Assault Rifle 10064 | -9/Storage | Repaired Rnf. Ion Engine? 10129 | -9/Storage | Learned location of 2 exits from Materials 10151 | -9/Storage | Learned Materials trap positions 10161 | -9/Storage | Repaired Med. Armor Plating 10164 | -9/Storage | Learned Storage trap positions 10165 | -9/Storage | Learned Materials non-interactive machine intel 10166 | -9/Storage | Learned Storage trap positions 10173 | -9/Storage | Learned location of 3 exits from Materials 10188 | -9/Storage | Repaired Lgt. Treads 10189 | -9/Storage | Learned Storage security intel 10190 | -9/Storage | Watched by a mysterious "MATRIX" hacker. 11096 | -9/Storage | Core integrity fell below 20% 11647 | -9/Storage | Entered Recycling 12161 | -9/Recycling | Scanned before Scraplab entrance 12559 | -9/Recycling | Build established: Commander-Tank 13123 | -9/Recycling | Discovered new exit (range 10) 13134 | -9/Recycling | Learned Storage trap positions 13196 | -9/Recycling | Learned Storage terminal intel 13248 | -9/Recycling | Learned location of Zion (-6) 13323 | -9/Recycling | Learned Materials trap positions 13373 | -9/Recycling | Learned 4 Recycling zone layouts 13465 | -9/Recycling | Learned location of 1 exit from Storage 13581 | -9/Recycling | Entered Scraplab 13600 | -9/Recycling | Discovered new exit (range 2) 13615 | -9/Recycling | Entered Scraptown 13615 | -9/Scraptown | Accompanied by 6 allies 13951 | -9/Scraptown | Visited UFD Registry 13984 | -9/Scraptown | Visited TADAMA 14023 | -9/Scraptown | Visited Awakened 14078 | -9/Scraptown | Visited Shadow of the Wyrm 14253 | -9/Scraptown | Discovered new exit (range 11) 14765 | -9/Scraptown | Registered with UFD as "Microtorch" 14842 | -9/Scraptown | Visited Curators Association 14933 | -9/Scraptown | Visited Junk Repository 15007 | -9/Scraptown | Visited Junk Repository 15077 | -9/Scraptown | Visited Observation Area 15135 | -9/Scraptown | Visited Cartography Club 15245 | -9/Scraptown | Learned location of Warlord (-5) 15245 | -9/Scraptown | Learned location of Cetus (-6) 15245 | -9/Scraptown | Learned 12 Factory zone layouts 15245 | -9/Scraptown | Learned 24 Factory zone layouts 15245 | -9/Scraptown | Learned 4 Access zone layouts 15245 | -9/Scraptown | Learned 4 Mines zone layouts 15245 | -9/Scraptown | Learned 12 Lower Caves zone layouts 15245 | -9/Scraptown | Learned 8 Upper Caves zone layouts 15245 | -9/Scraptown | Learned 12 Proximity Caves zone layouts 15245 | -9/Scraptown | Learned 24 Proximity Caves zone layouts 15245 | -9/Scraptown | Learned Factory emergency access door positions 15245 | -9/Scraptown | Learned location of 2 exits from Factory 15245 | -9/Scraptown | Learned location of 2 exits from Proximity Caves 15245 | -9/Scraptown | Learned location of 3 exits from Proximity Caves 15264 | -9/Scraptown | Found Deep Structural Scanner 15485 | -9/Scraptown | Visited DA-N13 Charitable Foundation 15507 | -9/Scraptown | Found DCF Scrap (29 items) 15583 | -9/Scraptown | Visited LU-1G1's Boring Crew 15621 | -9/Scraptown | Build established: Commander-Skirmisher 15972 | -9/Scraptown | Visited A0-MCA Data Center 15987 | -9/Scraptown | Given a B rating by A0-MCA 15997 | -9/Scraptown | Found A0-MCA's Component Scanner 16046 | -9/Scraptown | Visited Abandonware Association 16070 | -9/Scraptown | Learned abandonware demo "REVENGE.EXE" 16070 | -9/Scraptown | Learned abandonware demo "KABOOM.EXE" 16087 | -9/Scraptown | Learned abandonware demo "OVRCLOCK.EXE" 16391 | -9/Scraptown | Visited Symbiants 16482 | -9/Scraptown | Visited CR-KLE's Repair Center 16505 | -9/Scraptown | CR-KLE repaired 4 parts 16556 | -9/Scraptown | Visited Bundlers 16691 | -9/Scraptown | Visited Cyclists 16711 | -9/Scraptown | Entered Cyclist Reading Room 17042 | -9/Scraptown | Met Optimus 17042 | -9/Scraptown | Accepted into 0bPrime 17165 | -9/Scraptown | Discovered new exit (range 9) 17195 | -9/Scraptown | Entered Factory 17195 | -6/Factory | Accompanied by 6 allies 17195 | -6/Factory | Evolved 6 slots: Propulsion x3, Utility x3 17196 | -6/Factory | Identified exit to Lower Caves 17197 | -6/Factory | Identified exit to Factory 17198 | -6/Factory | Identified exit to Extension 17323 | -6/Factory | Loaded intel: 8 recycling unit locations 17460 | -6/Factory | Lost 4 allies 17476 | -6/Factory | Learned location of Protoforge (-3) 17725 | -6/Factory | Garrison activated, responded to threat 18012 | -6/Factory | Spotted B-75 Beast 18138 | -6/Factory | Lost 12 parts (1p5n1u5w) 18523 | -6/Factory | Core integrity fell below 50% 18568 | -6/Factory | Lost 3 parts (2u1w) 18875 | -6/Factory | System corruption reached 10% 18916 | -6/Factory | Manually triggered Chute Trap 18916 | -6/Factory | Sucked down chute 18916 | -6/Factory | Entered Waste 18931 | -6/Waste | EMP discharged 18960 | -6/Waste | Spotted C-40 Crusher 18986 | -6/Waste | Met Warlord forces unprepared to attack 19030 | -6/Waste | Spotted C-40 Crusher 19031 | -6/Waste | EMP discharged 19034 | -6/Waste | Spotted C-40 Crusher 19039 | -6/Waste | Allies destroyed C-40 Crusher 19043 | -6/Waste | Allies destroyed C-40 Crusher 19045 | -6/Waste | Spotted C-40 Crusher 19053 | -6/Waste | Allies destroyed C-40 Crusher 19070 | -6/Waste | Spotted C-40 Crusher 19076 | -6/Waste | Allies destroyed C-40 Crusher 19083 | -6/Waste | Spotted C-40 Crusher 19086 | -6/Waste | Allies destroyed C-40 Crusher 19107 | -6/Waste | Lost 6 allies 19111 | -6/Waste | Allies destroyed C-40 Crusher 19131 | -6/Waste | EMP discharged 19131 | -6/Waste | System corruption reached 30% 19137 | -6/Waste | Discovered new exit (range 11) 19146 | -6/Waste | Identified exit to Factory 19172 | -6/Waste | Entered Factory 19172 | -6/Factory | Accompanied by 13 allies 19418 | -6/Factory | Loaded intel: 8 recycling unit locations 19467 | -6/Factory | Build established: Gunner 19522 | -6/Factory | First assault squad dispatched 19688 | -6/Factory | Entered Lower Caves 19688 | -6/Lower Caves | Accompanied by 12 allies 19789 | -6/Lower Caves | Attracted the attention of an 0b10 outpost 19824 | -6/Lower Caves | CL-ANK showed up to help 19826 | -6/Lower Caves | CL-ANK revealed a hidden path 19854 | -6/Lower Caves | Core integrity fell below 20% 20149 | -6/Lower Caves | Identified exit to Lower Caves 20161 | -6/Lower Caves | Entered an active Warlord outpost 20162 | -6/Lower Caves | Learned Factory trap positions 20162 | -6/Lower Caves | Learned Extension emergency access door positions 20179 | -6/Lower Caves | Build established: Scavenger-Tank 20184 | -6/Lower Caves | Encountered a Warlord checkpoint 20186 | -6/Lower Caves | A Derelict revealed a hidden shortcut to a safe place 20194 | -6/Lower Caves | Identified exit to Zion 20244 | -6/Lower Caves | Entered Zion 20244 | -6/Zion | Accompanied by 11 allies 20278 | -6/Zion | Received a visual enhancement algorithm 20278 | -6/Zion | Ran a visual enhancement algorithm 20291 | -6/Zion | System corruption cleaned by Quarantine Array 20507 | -6/Zion | Learned Factory garrison access intel 20612 | -6/Zion | Found Storm Laser 20769 | -6/Zion | Given the Hacking Drone Bay 20865 | -6/Zion | Found Hacking Drone Bay 20887 | -6/Zion | Turned away by Imprinter 20905 | -6/Zion | Build established: Gunner 21031 | -6/Zion | Discovered new exit (range 14) 21113 | -6/Zion | Entered Proximity Caves 21113 | -5/Proximity Caves | Accompanied by 11 allies 21208 | -5/Proximity Caves | Learned Factory emergency access door positions 21225 | -5/Proximity Caves | Attracted the attention of an 0b10 checkpoint 21490 | -5/Proximity Caves | Entered Factory 21490 | -5/Factory | Accompanied by 8 allies 21490 | -5/Factory | Evolved 2 slots: Power x1, Weapon x1 21491 | -5/Factory | Identified exit to Upper Caves 21492 | -5/Factory | Loaded intel: 83 trap records 21494 | -5/Factory | Loaded intel: 4 garrison access locations 21536 | -5/Factory | Identified exit to Factory 22090 | -5/Factory | First assault squad dispatched 22179 | -5/Factory | Build established: Scavenger-Gunner 22181 | -5/Factory | Lost 4 allies 22679 | -5/Factory | Loaded intel: 8 recycling unit locations 22855 | -5/Factory | Build established: Scavenger-Tank 23015 | -5/Factory | Central database locked down 23287 | -5/Factory | Spotted B-75 Beast 23944 | -5/Factory | Manually triggered Chute Trap 23944 | -5/Factory | Sucked down chute 23944 | -5/Factory | Entered Waste 23950 | -5/Waste | Spotted C-40 Crusher 23959 | -5/Waste | EMP discharged 23959 | -5/Waste | System corruption reached 10% 23960 | -5/Waste | Spotted C-40 Crusher 23966 | -5/Waste | Spotted C-40 Crusher 23970 | -5/Waste | Destroyed C-40 Crusher 23978 | -5/Waste | Spotted C-40 Crusher 24001 | -5/Waste | Spotted C-40 Crusher 24004 | -5/Waste | Discovered new exit (range 14) 24004 | -5/Waste | Spotted C-40 Crusher 24030 | -5/Waste | Destroyed C-40 Crusher 24030 | -5/Waste | Destroyed C-40 Crusher 24033 | -5/Waste | Destroyed C-40 Crusher 24046 | -5/Waste | Destroyed C-40 Crusher 24056 | -5/Waste | Destroyed C-40 Crusher 24059 | -5/Waste | EMP discharged 24115 | -5/Waste | Identified exit to Factory 24115 | -5/Waste | Entered Factory 24143 | -5/Factory | Found Exp. Targeting Computer 24214 | -5/Factory | Build established: Skirmisher 24243 | -5/Factory | Repaired Gravmag Array 24259 | -5/Factory | Loaded intel: 8 recycling unit locations 24715 | -5/Factory | First assault squad dispatched 24781 | -5/Factory | Destroyed 10 combat bots 24855 | -5/Factory | Discovered exit to Factory (range 16) 25080 | -5/Factory | Garrison activated, responded to threat 25136 | -5/Factory | Cargo convoy interrupted 25147 | -5/Factory | High security lockdown imminent 25165 | -5/Factory | Entered Upper Caves 25196 | -5/Upper Caves | Lost 5 parts (1p3n1w) 25480 | -5/Upper Caves | Learned 4 Factory zone layouts 25574 | -5/Upper Caves | Core integrity fell below 50% 25664 | -5/Upper Caves | Discovered new exit (range 7) 25669 | -5/Upper Caves | Identified exit to Upper Caves 25783 | -5/Upper Caves | Entered another Upper Caves area 25833 | -5/Upper Caves | Destroyed 9 combat bots 25991 | -5/Upper Caves | Spotted B-75 Beast 26049 | -5/Upper Caves | Identified exit to Warlord 26056 | -5/Upper Caves | Discovered exit to Factory (range 4) 26451 | -5/Upper Caves | Entered Warlord 26469 | -5/Warlord | System corruption cleaned by Quarantine Array 26511 | -5/Warlord | Ran a visual enhancement algorithm 26778 | -5/Warlord | Found RU-N14's Throwing Claymores v3 26780 | -5/Warlord | Found RU-N14's Throwing Claymores v3 26781 | -5/Warlord | Found RU-N14's Throwing Claymores v3 26783 | -5/Warlord | Found RU-N14's Throwing Claymores v3 26784 | -5/Warlord | Found RU-N14's Throwing Claymores v3 26786 | -5/Warlord | Found RU-N14's Throwing Claymores v3 26860 | -5/Warlord | Warlord's base attacked by MAIN.C 26916 | -5/Warlord | Found Vortex Driver 26918 | -5/Warlord | Found Vortex Driver 27003 | -5/Warlord | Found Vortex Chain Reactor 27012 | -5/Warlord | Found Exp. Phase Shifter 27032 | -5/Warlord | Build established: Commander-Gunner 27083 | -5/Warlord | Spotted B-75 Beast 27087 | -5/Warlord | Destroyed 7 combat bots 27120 | -5/Warlord | Warlord forces counterattacked 27193 | -5/Warlord | Spotted HO-2B0(g) 27193 | -5/Warlord | Destroyed HO-2B0(g) 27214 | -5/Warlord | Spotted Executioner 27215 | -5/Warlord | Destroyed Executioner 27234 | -5/Warlord | Lost 5 allies 27236 | -5/Warlord | Destroyed 14 combat bots 27360 | -5/Warlord | Spotted Executioner 27360 | -5/Warlord | Spotted Executioner 27372 | -5/Warlord | Destroyed Executioner 27376 | -5/Warlord | Destroyed Executioner 27400 | -5/Warlord | Destroyed 13 combat bots 27410 | -5/Warlord | Lost 11 allies 27535 | -5/Warlord | Warlord base infiltrated, sounded retreat 27579 | -5/Warlord | Destroyed Executioner 27593 | -5/Warlord | Rebuked by Warlord 27600 | -5/Warlord | Destroyed 7 combat bots 27696 | -5/Warlord | Discovered new exit (range 15) 27762 | -5/Warlord | Identified exit to Proximity Caves 27765 | -5/Warlord | Spotted Executioner 27775 | -5/Warlord | Spotted Executioner 27807 | -5/Warlord | Lost 11 allies 27860 | -5/Warlord | Spotted Striker 27863 | -5/Warlord | Spotted Striker 27960 | -5/Warlord | Spotted Striker 27960 | -5/Warlord | Spotted Striker 28000 | -5/Warlord | Lost 15 allies 28060 | -5/Warlord | Spotted Striker 28072 | -5/Warlord | Destroyed Striker 28160 | -5/Warlord | Spotted B-86 Titan 28160 | -5/Warlord | Spotted Executioner 28177 | -5/Warlord | Destroyed B-86 Titan 28269 | -5/Warlord | Spotted Executioner 28296 | -5/Warlord | Murdered Warlord 28297 | -5/Warlord | Attacked by Warlord forces 28299 | -5/Warlord | Entered Proximity Caves 28299 | -4/Proximity Caves | Accompanied by 1 ally 28299 | -4/Proximity Caves | Spotted B-86 Titan 28330 | -4/Proximity Caves | Destroyed B-86 Titan 28442 | -4/Proximity Caves | Attracted the attention of an 0b10 checkpoint 28736 | -4/Proximity Caves | Build established: Mutant 28785 | -4/Proximity Caves | Received a Behemoth hack from an annoying Tinkerer 28791 | -4/Proximity Caves | Entered Factory 28791 | -4/Factory | Evolved 2 slots: Propulsion x1, Utility x1 28792 | -4/Factory | Identified exit to Research 28792 | -4/Factory | Identified exit to Armory 28793 | -4/Factory | Identified exit to Upper Caves 28929 | -4/Factory | Spotted B-86 Titan 29072 | -4/Factory | Loaded intel: 8 recycling unit locations 29175 | -4/Factory | Destroyed 8 combat bots 29463 | -4/Factory | System corruption reached 10% 29487 | -4/Factory | Lost 4 parts (1p2n1w) 29541 | -4/Factory | First assault squad dispatched 29581 | -4/Factory | Sucked down chute 29581 | -4/Factory | Entered Waste 29582 | -4/Waste | Joined by Warlord forces that had cleared the area 29751 | -4/Waste | Found Broken Exp. Transmission Jammer 29773 | -4/Waste | Build established: Scavenger-Gunner 29847 | -4/Waste | Discovered new exit (range 22) 29929 | -4/Waste | Entered Factory 29929 | -4/Factory | Accompanied by 20 allies 29996 | -4/Factory | Targeted by mysterious "MATRIX" hacker. 30121 | -4/Factory | Loaded intel: 8 recycling unit locations 30142 | -4/Factory | Discovered exit to Upper Caves (range 17) 30179 | -4/Factory | First assault squad dispatched 30223 | -4/Factory | Lost 4 allies 30269 | -4/Factory | Scraphulk reinforcements arrived? 30399 | -4/Factory | Central database locked down 30401 | -4/Factory | Lost 3 allies 30455 | -4/Factory | Scraphulk reinforcements arrived? 30518 | -4/Factory | Scraphulk reinforcements arrived? 30558 | -4/Factory | Spotted B-86 Titan 30562 | -4/Factory | Destroyed B-86 Titan 30619 | -4/Factory | P-70 Sage assimilated allied 8C-KC9(g) 30623 | -4/Factory | High security lockdown imminent 30651 | -4/Factory | Noticed UFD Elites at a Recycling Unit 30703 | -4/Factory | High security lockdown engaged 30816 | -4/Factory | Lost 3 parts (1n2u) 30834 | -4/Factory | Entered Armory 30969 | -4/Armory | Lost 3 parts (1n2w) 31084 | -4/Armory | First assault squad dispatched 31173 | -4/Armory | Found Prototype Hackware 31173 | -4/Armory | Identified Exp. System Shield 31182 | -4/Armory | Destroyed 8 combat bots 31190 | -4/Armory | P-70 Sage assimilated allied Archangel 7a 31253 | -4/Armory | Spotted B-86 Titan 31272 | -4/Armory | Found Fusion Bomb Launcher 31274 | -4/Armory | Found Fusion Bomb Launcher 31277 | -4/Armory | Destroyed 10 combat bots 31296 | -4/Armory | Lost 5 parts (2n3u) 31301 | -4/Armory | Lost 3 allies 31304 | -4/Armory | Fabricated D-83 Annihilator? 31306 | -4/Armory | High security lockdown imminent 31351 | -4/Armory | Destroyed 7 combat bots 31354 | -4/Armory | Lost 3 parts (3w) 31356 | -4/Armory | Found Fusion Bomb Launcher 31357 | -4/Armory | Found Fusion Bomb Launcher 31360 | -4/Armory | Found Unknown Launcher 31360 | -4/Armory | Identified Gamma Bomb Array 31362 | -4/Armory | Found Gamma Bomb Array 31386 | -4/Armory | High security lockdown engaged 31428 | -4/Armory | Fabricated D-83 Annihilator? 31462 | -4/Armory | Discovered exit to Research (range 15) 31495 | -4/Armory | Lost 3 parts (1n2u) 31517 | -4/Armory | Discovered new exit (range 11) 31525 | -4/Armory | Entered Lab 31527 | -4/Lab | Discovered exit to Research (range 9) 31536 | -4/Lab | Unable to decrypt terminal 31536 | -4/Lab | Ran a visual enhancement algorithm 31539 | -4/Lab | Entered Research 31539 | -3/Research | Evolved 2 slots: Utility x2 31554 | -3/Research | Build established: Scavenger-Tank 31556 | -3/Research | Spotted B-86 Titan 31597 | -3/Research | Discovered new exit (range 13) 32013 | -3/Research | Spotted B-86 Titan 32271 | -3/Research | Build established: Scavenger-Gunner 32463 | -3/Research | Lost 4 parts (2n1u1w) 32510 | -3/Research | Lost 4 parts (2p1n1w) 32727 | -3/Research | Identified exit to Quarantine 32730 | -3/Research | Spotted B-90 Cyclops 32865 | -3/Research | Entered Quarantine 32870 | -3/Quarantine | Spotted Alpha 7 32894 | -3/Quarantine | Found Alien Launcher 32927 | -3/Quarantine | Lost 5 parts (3n2w) 32955 | -3/Quarantine | Found Alien Artifact 32955 | -3/Quarantine | Identified Phase Redirector 33011 | -3/Quarantine | Found Fusion Bomb Launcher 33060 | -3/Quarantine | Found Unknown Protection 33060 | -3/Quarantine | Identified Hvy. Reflective Plating 33081 | -3/Quarantine | Destroyed Alpha 7 33085 | -3/Quarantine | Found Prototype Device 33085 | -3/Quarantine | Identified Exp. ECM Suite 33098 | -3/Quarantine | Found Exp. Targeting Computer 33211 | -3/Quarantine | Found Fusion Bomb Launcher 33327 | -3/Quarantine | Found Gamma Bomb Array 33378 | -3/Quarantine | Found Alien Artifact 33596 | -3/Quarantine | Build established: Scavenger-Scout 33616 | -3/Quarantine | Cryocooling Duct disabled 33631 | -3/Quarantine | Ambient heat levels rising (+20) 33631 | -3/Quarantine | Non-combat units ordered to evacuate 33688 | -3/Quarantine | Lost 4 parts (1p1n1u1w) 33881 | -3/Quarantine | Cryocooling Duct disabled 33892 | -3/Quarantine | Cryocooling Duct disabled 33896 | -3/Quarantine | Ambient heat levels rising (+20) 33896 | -3/Quarantine | Combat units ordered to evacuate 33907 | -3/Quarantine | Ambient heat levels rising (+20) 33996 | -3/Quarantine | Quarantine Guard activated 34031 | -3/Quarantine | Found Alien Energy Cannon 34098 | -3/Quarantine | Spotted Fortress 34127 | -3/Quarantine | Discovered new exit (range 6) 34127 | -3/Quarantine | Discovered new exit (range 6) 34129 | -3/Quarantine | Identified exit to Protoforge 34130 | -3/Quarantine | Identified exit to Section 7 34134 | -3/Quarantine | Entered Protoforge 34163 | -3/Protoforge | Superfortress began startup sequence 34448 | -3/Protoforge | Central database locked down 34475 | -3/Protoforge | Spotted Hotshot 34477 | -3/Protoforge | Spotted Hotshot 34521 | -3/Protoforge | System corruption reached 10% 34557 | -3/Protoforge | Spotted AP7-3 34558 | -3/Protoforge | Spotted AP7-3 34572 | -3/Protoforge | Spotted Hotshot 34582 | -3/Protoforge | Spotted Hotshot 34590 | -3/Protoforge | Core integrity fell below 50% 34592 | -3/Protoforge | Destroyed 8 combat bots 34617 | -3/Protoforge | Lost 5 parts (2p2n1w) 34649 | -3/Protoforge | Identified Core Cannon 34673 | -3/Protoforge | Spotted EXE-6 34673 | -3/Protoforge | Spotted EXE-6 34687 | -3/Protoforge | Lost 6 parts (1p2n2u1w) 34703 | -3/Protoforge | Spotted EXE-6 34723 | -3/Protoforge | UFD initiated attack on Protoforge (Readiness: Adequate) 34723 | -3/Protoforge | Loaded intel: 3 recycling unit locations 34748 | -3/Protoforge | Scraphulk reinforcements arrived 34752 | -3/Protoforge | Found Prototype Processor 34752 | -3/Protoforge | Identified Exp. Armor Integrity Analyzer 34754 | -3/Protoforge | Found Prototype Ballistic Gun 34756 | -3/Protoforge | Found Prototype Device 34756 | -3/Protoforge | Identified Exp. Kinecellerator 34759 | -3/Protoforge | Optimus greeted in Protoforge 34766 | -3/Protoforge | Found Prototype Processor 34766 | -3/Protoforge | Identified Exp. Target Analyzer 34768 | -3/Protoforge | Found Exp. Target Analyzer 34773 | -3/Protoforge | Found Prototype Energy Gun 34773 | -3/Protoforge | Identified Enh. Gamma Rifle 34776 | -3/Protoforge | Spotted SKR-2 34776 | -3/Protoforge | Found Prototype Ballistic Gun 34776 | -3/Protoforge | Identified Cep. XC Strikerail (x2) 34780 | -3/Protoforge | Lost 7 allies 34781 | -3/Protoforge | Spotted SKR-2 34782 | -3/Protoforge | Spotted SKR-2 34791 | -3/Protoforge | Allies destroyed SKR-2 34795 | -3/Protoforge | Allies destroyed SKR-2 34828 | -3/Protoforge | Lost 4 allies 34874 | -3/Protoforge | Found Cep. XC Strikerail 34876 | -3/Protoforge | Found Exp. Core Analyzer 34899 | -3/Protoforge | Spotted Overlord 34922 | -3/Protoforge | Destroyed Overlord 34951 | -3/Protoforge | Lost 8 allies 35013 | -3/Protoforge | Spotted Striker 35013 | -3/Protoforge | Spotted Executioner 35020 | -3/Protoforge | Allies destroyed Striker 35026 | -3/Protoforge | Allies destroyed Executioner 35028 | -3/Protoforge | Spotted Striker 35031 | -3/Protoforge | Spotted Striker 35041 | -3/Protoforge | Destroyed Striker 35067 | -3/Protoforge | Spotted Striker 35071 | -3/Protoforge | Spotted Striker 35086 | -3/Protoforge | Destroyed Striker 35094 | -3/Protoforge | Lost 12 allies 35140 | -3/Protoforge | Spotted Striker 35143 | -3/Protoforge | Spotted Striker 35149 | -3/Protoforge | Destroyed 18 combat bots 35191 | -3/Protoforge | UFD reported confirmed Drillbomb installation 35201 | -3/Protoforge | Found Scrap Suit 35215 | -3/Protoforge | UFD reported confirmed Drillbomb installation 35240 | -3/Protoforge | Lost 9 allies 35250 | -3/Protoforge | Spotted Executioner 35256 | -3/Protoforge | Spotted Executioner 35278 | -3/Protoforge | UFD reported confirmed Drillbomb installation 35288 | -3/Protoforge | Spotted Executioner 35359 | -3/Protoforge | Lost 16 allies 35364 | -3/Protoforge | Found Exp. Core Analyzer 35397 | -3/Protoforge | Found Prototype Protection 35397 | -3/Protoforge | Identified Cep. Core Shell 35416 | -3/Protoforge | Found Cep. Core Shell 35424 | -3/Protoforge | Spotted Immortal 35425 | -3/Protoforge | Spotted Immortal 35426 | -3/Protoforge | Spotted V315-l 35519 | -3/Protoforge | Found Prototype Hover Unit 35519 | -3/Protoforge | Identified Cep. Gyrokinetic System 35522 | -3/Protoforge | Found Cep. Gyrokinetic System 35524 | -3/Protoforge | Found Cep. Gyrokinetic System 35535 | -3/Protoforge | Found Cep. Gyrokinetic System 35537 | -3/Protoforge | Found Prototype Launcher 35537 | -3/Protoforge | Identified Com. Tesla Bomb Launcher 35566 | -3/Protoforge | Spotted Executioner 35568 | -3/Protoforge | Spotted Executioner 35589 | -3/Protoforge | Core integrity fell below 20% 35610 | -3/Protoforge | Spotted Striker 35613 | -3/Protoforge | Destroyed Striker 35616 | -3/Protoforge | Destroyed Striker 35631 | -3/Protoforge | Found Scrap Suit 35634 | -3/Protoforge | Spotted Striker 35634 | -3/Protoforge | Spotted Striker 35640 | -3/Protoforge | Destroyed Striker 35643 | -3/Protoforge | Destroyed Striker 35652 | -3/Protoforge | Build established: Scavenger-Gunner 35664 | -3/Protoforge | Destroyed 8 combat bots 35681 | -3/Protoforge | Lost 17 allies 35686 | -3/Protoforge | Found Adv. Powered Armor 35718 | -3/Protoforge | Spotted Striker 35722 | -3/Protoforge | Destroyed Striker 35726 | -3/Protoforge | Spotted Striker 35739 | -3/Protoforge | Found Exp. Core Analyzer 35743 | -3/Protoforge | Destroyed 8 combat bots 35755 | -3/Protoforge | Lost 4 allies 35797 | -3/Protoforge | Spotted Striker 35856 | -3/Protoforge | Found Prototype Storage 35856 | -3/Protoforge | Identified Cep. Chromion Battery 35862 | -3/Protoforge | Found Prototype Device 35862 | -3/Protoforge | Identified Cep. Recoil Nullifier 35871 | -3/Protoforge | Additional patrols dispatched to research labs 35877 | -3/Protoforge | Identified Sigix Terminator 35884 | -3/Protoforge | Found Cep. Recoil Nullifier 35903 | -3/Protoforge | Spotted Striker 35917 | -3/Protoforge | Spotted Striker 35925 | -3/Protoforge | Destroyed Striker 35970 | -3/Protoforge | Spotted Striker 35972 | -3/Protoforge | Lost 3 allies 35996 | -3/Protoforge | Destroyed Striker 35999 | -3/Protoforge | Destroyed Striker 36071 | -3/Protoforge | Found Cep. Core Shell 36075 | -3/Protoforge | Spotted Executioner 36076 | -3/Protoforge | Spotted Striker 36117 | -3/Protoforge | Spotted Executioner 36125 | -3/Protoforge | Spotted Striker 36165 | -3/Protoforge | Spotted Striker 36182 | -3/Protoforge | Spotted Executioner 36205 | -3/Protoforge | Spotted Executioner 36258 | -3/Protoforge | Lost 16 allies 36346 | -3/Protoforge | Spotted Executioner 36354 | -3/Protoforge | Spotted Executioner 36354 | -3/Protoforge | Spotted Striker 36360 | -3/Protoforge | Spotted Striker 36367 | -3/Protoforge | Destroyed Executioner 36367 | -3/Protoforge | Destroyed Striker 36394 | -3/Protoforge | Destroyed 03F21-K 36450 | -3/Protoforge | Destroyed Executioner 36481 | -3/Protoforge | Lost 16 allies 36532 | -3/Protoforge | Spotted Executioner 36545 | -3/Protoforge | Spotted Striker 36546 | -3/Protoforge | Spotted Executioner 36606 | -3/Protoforge | Identified Core Reset Matrix 36606 | -3/Protoforge | Used Core Reset Matrix 36610 | -3/Protoforge | Sensed 3 artifacts in vicinity 36617 | -3/Protoforge | Found Unknown Device 36617 | -3/Protoforge | Identified 0bPrime Scrap Suit 36619 | -3/Protoforge | UFD reported confirmed Drillbomb installation 36651 | -3/Protoforge | Spotted Executioner 36659 | -3/Protoforge | Spotted Executioner 36670 | -3/Protoforge | Spotted Striker 36675 | -3/Protoforge | Destroyed Striker 36696 | -3/Protoforge | Spotted Executioner 36708 | -3/Protoforge | Lost 7 allies 36709 | -3/Protoforge | Spotted Executioner 36717 | -3/Protoforge | Destroyed Executioner 36724 | -3/Protoforge | Spotted Striker 36725 | -3/Protoforge | Spotted Executioner 36725 | -3/Protoforge | Destroyed Executioner 36749 | -3/Protoforge | Spotted Executioner 36772 | -3/Protoforge | Spotted Executioner 36776 | -3/Protoforge | Destroyed Executioner 36785 | -3/Protoforge | Destroyed Executioner 36805 | -3/Protoforge | P-80 Master assimilated allied 03FBZ-D 36825 | -3/Protoforge | Spotted Striker 36838 | -3/Protoforge | Spotted Striker 36866 | -3/Protoforge | Crushed by falling debris 36873 | -3/Protoforge | Lost 19 allies 36875 | -3/Protoforge | Spotted Executioner 36892 | -3/Protoforge | Destroyed Executioner 36895 | -3/Protoforge | P-80 Master assimilated allied 03FCF-D 36916 | -3/Protoforge | Spotted Executioner 36950 | -3/Protoforge | Spotted Executioner 36959 | -3/Protoforge | Lost 6 allies 37007 | -3/Protoforge | Lost 3 allies 37045 | -3/Protoforge | Destroyed Executioner 37056 | -3/Protoforge | Spotted Executioner 37067 | -3/Protoforge | Destroyed Executioner 37086 | -3/Protoforge | Spotted Executioner 37087 | -3/Protoforge | Lost 4 allies 37110 | -3/Protoforge | Spotted Executioner 37123 | -3/Protoforge | Destroyed Executioner 37135 | -3/Protoforge | Lost 4 allies 37157 | -3/Protoforge | Found UFD Drillbomb 37158 | -3/Protoforge | Spotted Striker 37173 | -3/Protoforge | Installed UFD Drillbomb at designated target 37173 | -3/Protoforge | UFD reported confirmed Drillbomb installation 37175 | -3/Protoforge | Found UFD Drillbomb 37178 | -3/Protoforge | Spotted Executioner 37179 | -3/Protoforge | Spotted Striker 37206 | -3/Protoforge | Spotted Executioner 37241 | -3/Protoforge | Destroyed Executioner 37256 | -3/Protoforge | Spotted Executioner 37259 | -3/Protoforge | Spotted Striker 37288 | -3/Protoforge | Lost 9 allies 37329 | -3/Protoforge | Spotted Executioner 37345 | -3/Protoforge | Spotted Executioner 37353 | -3/Protoforge | Spotted Striker 37365 | -3/Protoforge | Spotted Executioner 37367 | -3/Protoforge | Spotted Striker 37394 | -3/Protoforge | Destroyed Executioner 37411 | -3/Protoforge | P-80 Master assimilated allied Lugger 242 37416 | -3/Protoforge | P-80 Master assimilated allied 14-1C7(E) 37438 | -3/Protoforge | Destroyed Executioner 37440 | -3/Protoforge | Spotted Striker 37442 | -3/Protoforge | Spotted Striker 37447 | -3/Protoforge | Destroyed Striker 37474 | -3/Protoforge | Lost 14 allies 37503 | -3/Protoforge | Spotted Striker 37507 | -3/Protoforge | Spotted Striker 37544 | -3/Protoforge | Spotted Executioner 37545 | -3/Protoforge | Lost 3 allies 37550 | -3/Protoforge | UFD reported confirmed Drillbomb installation 37565 | -3/Protoforge | Spotted Executioner 37569 | -3/Protoforge | Destroyed Executioner 37575 | -3/Protoforge | Spotted 03F28-K 37577 | -3/Protoforge | P-80 Master assimilated allied YL-OR2(E) 37638 | -3/Protoforge | Lost 12 allies 37647 | -3/Protoforge | Spotted Executioner 37695 | -3/Protoforge | Spotted Striker 37696 | -3/Protoforge | Spotted Striker 37704 | -3/Protoforge | Spotted Executioner 37707 | -3/Protoforge | Destroyed Executioner 37743 | -3/Protoforge | Spotted Executioner 37797 | -3/Protoforge | Destroyed Executioner 37800 | -3/Protoforge | Spotted Executioner 37836 | -3/Protoforge | Spotted Executioner 37880 | -3/Protoforge | P-80 Master assimilated allied Lugger 990 37896 | -3/Protoforge | Lost 7 allies 37897 | -3/Protoforge | Spotted Striker 37901 | -3/Protoforge | Spotted Striker 37931 | -3/Protoforge | Spotted Executioner 37931 | -3/Protoforge | Spotted Executioner 37943 | -3/Protoforge | Spotted Striker 37945 | -3/Protoforge | Spotted Striker 37946 | -3/Protoforge | Found 0bPrime Scrap Suit 37970 | -3/Protoforge | Spotted Executioner 37971 | -3/Protoforge | Destroyed by Executioner with Helical Railgun Last Messages --------------- 37951_ Slug penetrates D9-ZRQ(E). 37952_ Acquired 15 matter. 37952_ Slug penetrates Terminal. 37952_ Slug penetrates Wall. 37952_ Slug penetrates Striker. 37953_ FY-KRE(E) destroyed. 37953_ Slug penetrates Striker. 37953_ Striker destroyed. 37954_ Destroyed Exp. Reaction Control System. 37954_ Slug penetrates Striker. 37955_ D9-ZRQ(E) suffers critical hit (Blast). 37955_ D9-ZRQ(E) destroyed. 37960_ Acquired 25 matter. 37966_ Striker suffers critical hit (Burn). 37966_ Slug penetrates Wall. 37967_ Slug penetrates Striker. 37967_ 03FEO-D destroyed. 37968_ Slug penetrates Striker. 37970_ 03FEP-D suffers critical hit (Burn). 37970_ 03FEP-D destroyed. Map ----- +----------------------------------------------------+ | #% "# # ""%"%+%"!" " " " #?# """" | | "# %# " " " "%" " " " #?# """" | | # %"########"# " % " " " #?# | | # "##??##?### % # #?# " | | "% " ???# ???### %### ### " | | ""% #????# #????# #?# # # " % | | "% ##???# ###??# #?####"########""#! ""%"" % | | ! "###?# # #??# ##???## #?????#"%#%%"" "" | | " ## #?# # #??# "##????# #????# [%% "" " % | | " " #?# # #??; %# #?????# #?# =#%% % "" | | " "#####;#;#### % "##??????##?### #=% %& " | | " = " ###; ;% ##????????????## # " | | %%%%=" ##; " " ; ;##???????????? #= % % % | | !%% !=* ##; % *!! #????????????# #% | | %[%%%[!= #; " ""![[%! "#????????????### % | | %%=[%"%!* # ""%%%!!!;##?????????????# % | | [*=*[ %|=!; %% ![s=j!* ###???????????# " |%" %" | | !!/% "%=*[!;;;;%*!%=%*! # ###???##????# " % | | !![%!;%&%![[!;%!!%%%[%![ # #??# #????#" %% % | | !=!%*!%% !!%/[==%m=!%=!* # #?# #?????#%" %% | | ==!=%*= [%%*&*%=[!%[!=% !#;;##;#??????#" " "%"""% | | =[!%[%%[ %%&!*!=[![![[! #???????# % "%% | | "! %!% % %%%!=!*%=K%%[ ###?????# * " | | *"% =!=% %%% %&= *%[=! ; #?###?#=% %% % | | !"%%%*%%=%%%%%%&& % %!& ##### ### =""% %%%" | | ![%%%%%%%%%% % %%|% @ ## # "" % % % | | %% %%%%%%%%%%%%%%%*% % ; ### # " | | [| %%%!%%%%%%%%%%%%% /! % ; [= # %%% % | | !%!%!!%=;%%;%;&&%%%%%= % / !#%% %%%% | | !*!=%![!! ] *%!![%%% = % %%; = !#% %% % " | | *%!*=%!;![[[ % %%% !!!;; %% %![* =#%% % %% | | [[! ! !%!! % %%m&%&%;%;%&%%%%% % #%%%% %% | | = ;[*!! % %%% %%%n%%%%%%%%%%n%%%%% %%%%%" | | ; = %%%%% %%%% %%%%%%%%%%%% %% %%[ | | " ; % % %&%%%%%%%%%%%%%%% ! % | | " " ; ; %%%% %;%;%% #% [% | | " " ; ;%%% %% ; =! *#%%! | | ""##"##;;#;;##; ; * % %%;!*!* #!["" | | ##?#### ## ; % % ;!=!*!*! # | | ??????#### ;% !/ !# # "" | | ?????????# ;% %% % ; #### | | ?????????#######;; ^% %% ; ### #??# "" | | ??????????????#;;; % ; ##?###?## """ | | ????????????? ; %% ###??????#%####### ## | | ??????????? # % #???????# #?????####? | | ????????? # #??????#! ##?????????? | | ????????# """" " E #????? =# ???????????? | | ????????# """" " +???? ## ???????????? | | ????????# """ # % #??? " ?##???????????? | | ????????# ??? " #"%""""#" ##?? ???????????????? | +----------------------------------------------------+ Best States ------------- Heat Dissipation 150 Coolant Potential 100 Energy Generation 55 Energy Capacity 1725 Matter Stores 450 Matter Capacity 450 Sight Range 23 Robot Scan Range 16 Terrain Scan Range 16 Terrain Scan Density 10 Jamming Range 12 Additional Mass Support 16 Armor Coverage 600 Resistance: KI 30 Resistance: TH 25 Core Shielding 90 Propulsion Shielding 90 Weapon Cycling 20 Phase Shifting 20 Evasion (%) 77 Targeting Accuracy 12 Target Analysis 10 Core Analysis 12 Armor Integrity Analysis 50 Recoil Reduction 99 Matter Filtering 30 Kinecelleration 66 Offensive Hacking 20 Defensive Hacking 20 Authchip Count 4 Item Schematics ----------------- None Robot Schematics ------------------ None Fabricated ------------ D-83 Annihilator | x1 | -4/Armory | Authchip D-83 Annihilator | x1 | -4/Armory | Authchip Repaired ---------- Lgt. Treads | 15% | -10/Materials Imp. Terrain Scanner | 31% | -10/Materials | Broken Rnf. Ion Engine | 50% | -9/Materials Imp. Treads | 52% | -9/Materials Imp. Assault Rifle | 55% | -9/Materials Imp. Assault Rifle | 70% | -9/Materials Imp. Assault Rifle | 11% | -9/Storage Rnf. Ion Engine | 23% | -9/Storage Med. Armor Plating | 74% | -9/Storage Lgt. Treads | 71% | -9/Storage Gravmag Array | 9% | -5/Factory Studied --------- None Alien Tech Used ----------------- Phase Redirector Core Cannon Sigix Terminator Core Reset Matrix Achievements -------------- About That Survey... Anti-science Crusade Bending The Rules Bob, First Of His Name Fine I'll Do It Myself Freedom! Junior Dev King Drone Super-what Now? We Are One Wiki Contributor Challenges ------------ None Game ------ Seed BraceThunderExtractor Manual? 0 Play Time 12:10:30 Cumulative 682.7 hours Start 2026.04.05 @ 17:48:46 End 2026.04.14 @ 04:22:51 Sessions 19 Manual Loads 0 Difficulty Rogue Special Mode None Game No. 337 Rogue 337 Adventurer 0 Explorer 0 Win Type - Total 7 Types 3/0/2/1/0/0/0/0/0/1 Lore% 87 Gallery% 76 Achievement% 56 Wizard Run 0 Options --------- Layout 2 ASCII 0 Keyboard 1 Movement Vi Keybinds 0 Fullscreen 1 Font 16/Proggy Map View 55x47 Zoom Use 0% Tactical HUD 1 Map Filters NONE Filters NONE Steam 0 RUN: e9611214-8a0c-4446-b3c5-cb6612de6224